{"text_format":"1","workbook":"xlsx","n_sheets":5,"sheets":["Титул","сводные данные о бюджете времен","План","Кабинеты","Start"],"not_rendered":{"charts":0,"images":0,"macros":1,"external_links":0,"defined_names":0,"comments":0,"pivot_tables":0},"unopened":[],"bounds":{"document_bytes":16777216,"sheet_cells":100000,"rows_first":2000,"rows_last":500,"rows_between":2000,"halvings":0,"cell_chars":16384,"cell_head_chars":4096},"cells_cut":0,"cells_raw":0,"read":"whole","date_system":"1900"}

{"sheet":"Титул","index":0,"n_rows":33,"n_cols":45,"rows_kept":33,"cut":false,"hidden":false,"merged":[[4,14,5,61],[6,14,7,61],[10,14,13,61],[0,0,0,11],[1,0,2,11],[4,0,5,11],[6,0,7,11],[9,0,10,11],[15,0,15,12],[17,14,18,61],[19,14,19,18],[19,20,19,61],[20,14,20,19],[20,20,20,60],[14,14,15,61],[14,0,14,12],[21,14,21,27],[21,30,21,33],[21,34,21,61],[23,14,23,19],[23,20,23,61],[25,14,25,19],[25,20,25,31],[27,14,27,25],[27,27,27,31],[27,34,27,43],[27,44,27,47],[28,7,29,8],[29,14,29,33],[29,34,29,61],[30,34,31,61],[31,14,31,33],[32,34,32,36],[32,8,32,9],[32,14,32,24],[32,25,32,26],[32,27,32,31],[32,32,32,33]]}
["Утверждаю"]
["Директор ОГБПОУ  \"ДМК\""]
[]
[]
["И.А.Казаченко",null,null,null,null,null,null,null,null,null,null,null,null,null,"УЧЕБНЫЙ ПЛАН"]
[]
[null,null,null,null,null,null,null,null,null,null,null,null,null,null," программы подготовки специалистов среднего звена"]
[]
[]
["Приказ № 39-у от 28.02.2025"]
[null,null,null,null,null,null,null,null,null,null,null,null,null,null,"Областное государственное  бюджетное профессиональное образовательное учреждение \"Димитровградский музыкальный колледж\""]
[]
[]
[]
[null,null,null,null,null,null,null,null,null,null,null,null,null,null,"наименование образовательного учреждения (организации)"]
["Рассмотрено Педагогическим Советом  Протокол № 04 от 26.02.2025"]
[]
[null,null,null,null,null,null,null,null,null,null,null,null,null,null,"по специальности среднего профессионального образования"]
[]
[null,null,null,null,null,null,null,null,null,null,null,null,null,null,"53.02.06",null,null,null,null,null,"Хоровое дирижирование"]
[null,null,null,null,null,null,null,null,null,null,null,null,null,null,"код",null,null,null,null,null,"наименование специальности"]
[null,null,null,null,null,null,null,null,null,null,null,null,null,null,"по программе углубленной подготовки",null,null,null,null,null,null,null,null,null,null,null,null,null,null,null,"   на базе",null,null,null,"основного общего образования"]
[]
[null,null,null,null,null,null,null,null,null,null,null,null,null,null,"квалификация",null,null,null,null,null,"Дирижер хора, преподаватель"]
[]
[null,null,null,null,null,null,null,null,null,null,null,null,null,null,"форма обучения",null,null,null,null,null,"Очная"]
[]
[null,null,null,null,null,null,null,null,null,null,null,null,null,null,"нормативный срок освоения ППССЗ  ",null,null,null,null,null,null,null,null,null,null,null,null,"3г 10м",null,null,null,null,null,null,"год начала подготовки по УП",null,null,null,null,null,null,null,null,null,2025]
[]
[null,null,null,null,null,null,null,null,null,null,null,null,null,null,"профиль получаемого профессионального образования",null,null,null,null,null,null,null,null,null,null,null,null,null,null,null,null,null,null,null,"Искусство и культура 53.00.00 Музыкальное искусство"]
[null,null,null,null,null,null,null,null,null,null,null,null,null,null,null,null,null,null,null,null,null,null,null,null,null,null,null,null,null,null,null,null,null,null,"при реализации программы среднего (полного) общего образования"]
[]
[null,null,null,null,null,null,null,null,null,null,null,null,null,null,"Приказ об утверждении ФГОС",null,null,null,null,null,null,null,null,null,null,"от ",null,"2021-05-17",null,null,null,null,"     № ",null,253]

{"sheet":"сводные данные о бюджете времен","index":1,"n_rows":10,"n_cols":55,"rows_kept":10,"cut":false,"hidden":false,"merged":[[8,1,8,3],[8,4,8,6],[8,7,8,9],[8,10,8,12],[8,19,8,21],[8,22,8,24],[9,54,9,56],[9,38,9,40],[9,41,9,42],[9,43,9,44],[9,45,9,47],[9,48,9,50],[9,51,9,53],[9,13,9,15],[9,16,9,18],[9,19,9,21],[9,1,9,3],[9,4,9,6],[9,7,9,9],[9,10,9,12],[9,36,9,37],[9,22,9,24],[9,25,9,27],[9,28,9,30],[9,31,9,33],[9,34,9,35],[8,54,8,56],[8,41,8,42],[8,43,8,44],[8,45,8,47],[8,48,8,50],[8,13,8,15],[8,16,8,18],[8,31,8,33],[8,25,8,27],[8,28,8,30],[7,34,7,35],[7,36,7,37],[8,34,8,35],[8,36,8,37],[7,51,7,53],[7,54,7,56],[7,38,7,40],[7,41,7,42],[7,43,7,44],[7,45,7,47],[8,51,8,53],[8,38,8,40],[6,54,6,56],[7,1,7,3],[7,4,7,6],[7,7,7,9],[7,10,7,12],[7,13,7,15],[7,16,7,18],[7,19,7,21],[6,41,6,42],[7,31,7,33],[7,22,7,24],[7,25,7,27],[7,28,7,30],[7,48,7,50],[6,1,6,3],[6,4,6,6],[6,7,6,9],[6,10,6,12],[6,13,6,15],[6,16,6,18],[6,19,6,21],[6,43,6,44],[6,48,6,50],[6,31,6,33],[6,51,6,53],[4,51,4,53],[4,54,4,56],[5,19,5,21],[5,22,5,24],[5,48,5,50],[5,51,5,53],[5,34,5,35],[5,36,5,37],[5,38,5,40],[5,41,5,42],[5,54,5,56],[6,34,6,35],[6,36,6,37],[6,38,6,40],[6,45,6,47],[6,22,6,24],[5,43,5,44],[5,31,5,33],[5,45,5,47],[5,25,5,27],[5,28,5,30],[6,25,6,27],[6,28,6,30],[5,1,5,3],[5,4,5,6],[5,7,5,9],[5,10,5,12],[4,1,4,3],[4,4,4,6],[4,7,4,9],[4,10,4,12],[4,45,4,47],[4,41,4,42],[4,43,4,44],[5,13,5,15],[5,16,5,18],[4,25,4,27],[4,28,4,30],[4,13,4,15],[4,16,4,18],[1,54,3,56],[2,28,2,30],[2,31,2,37],[2,38,2,44],[2,45,3,47],[2,48,3,50],[3,31,3,33],[3,34,3,35],[3,22,3,24],[3,25,3,27],[3,28,3,30],[1,51,3,53],[3,36,3,37],[3,38,3,40],[3,41,3,42],[3,43,3,44],[0,0,0,48],[1,0,4,0],[1,1,2,18],[1,19,2,27],[1,28,1,44],[1,45,1,50],[3,1,3,6],[3,7,3,12],[3,13,3,18],[3,19,3,21],[4,36,4,37],[4,38,4,40],[4,19,4,21],[4,22,4,24],[4,31,4,33],[4,34,4,35],[4,48,4,50]]}
["2 Сводные данные по бюджету времени"]
["Курс","Обучение по дисциплинам и междисциплинарным курсам",null,null,null,null,null,null,null,null,null,null,null,null,null,null,null,null,null,"Промежуточная аттестация",null,null,null,null,null,null,null,null,"Практики",null,null,null,null,null,null,null,null,null,null,null,null,null,null,null,null,"ГИА",null,null,null,null,null,"Каникулы",null,null,"Всего"]
[null,null,null,null,null,null,null,null,null,null,null,null,null,null,null,null,null,null,null,null,null,null,null,null,null,null,null,null,"Учебная практика",null,null,"Производственная практика (по профилю специальности)",null,null,null,null,null,null,"Производственная практика (преддипломная)",null,null,null,null,null,null,"Подго-\r\nтовка",null,null,"Прове-\r\nдение"]
[null,"Всего",null,null,null,null,null,"1 сем",null,null,null,null,null,"2 сем",null,null,null,null,null,"Всего",null,null,"1 сем",null,null,"2 сем",null,null,"Всего",null,null,"Всего",null,null,"1 сем",null,"2 сем",null,"Всего",null,null,"1 сем",null,"2 сем"]
[null,"нед.",null,null,"час.",null,null,"нед.",null,null,"час.",null,null,"нед.",null,null,"час.",null,null,"нед.",null,null,"нед.",null,null,"нед.",null,null,"нед.",null,null,"нед.",null,null,"нед.",null,"нед.",null,"нед.",null,null,"нед.",null,"нед.",null,"нед.",null,null,"нед.",null,null,"нед.",null,null,"нед."]
["I","36 ",null,null,"1942/1296",null,null,"16 ",null,null,"864/576",null,null,"20 ",null,null,"1078/720",null,null,"4 ",null,null,"2 ",null,null,"2 ",null,null,null,null,null,"1 ",null,null,null,null,"1 ",null,null,null,null,null,null,null,null,null,null,null,null,null,null,"2 ",null,null,"43 "]
["II","36 ",null,null,"1945/1296",null,null,"16 ",null,null,"864/576",null,null,"20 ",null,null,"1081/720",null,null,"4 ",null,null,"2 ",null,null,"2 ",null,null,null,null,null,"2 ",null,null,null,null,"2 ",null,null,null,null,null,null,null,null,null,null,null,null,null,null,"11 ",null,null,"53 "]
["III","36 ",null,null,"1945/1296",null,null,"16 ",null,null,"864/576",null,null,"20 ",null,null,"1081/720",null,null,"4 ",null,null,"2 ",null,null,"2 ",null,null,null,null,null,"2 ",null,null,null,null,"2 ",null,null,null,null,null,null,null,null,null,null,null,null,null,null,"10 ",null,null,"52 "]
["IV","35 ",null,null,"1890/1260",null,null,"16 ",null,null,"864/576",null,null,"19 ",null,null,"1026/684",null,null,"1 ",null,null,"1 ",null,null,null,null,null,null,null,null,null,null,null,null,null,null,null,"1 ",null,null,"1 ",null,null,null,"1 ",null,null,"3 ",null,null,"10 ",null,null,"51 "]
["Всего","143 ",null,null,"7722/5148",null,null,null,null,null,"3456/2304",null,null,null,null,null,"4266/2844",null,null,"13 ",null,null,null,null,null,null,null,null,19,null,null,"5 ",null,null,null,null,null,null,"1 ",null,null,null,null,null,null,"1 ",null,null,"3 ",null,null,"33 ",null,null,"199 "]

{"sheet":"План","index":2,"n_rows":84,"n_cols":134,"rows_kept":84,"cut":false,"hidden":false,"merged":[[88,63,88,69],[88,70,88,76],[88,21,88,27],[88,28,88,34],[88,35,88,41],[88,42,88,48],[88,49,88,55],[88,56,88,62],[74,3,74,15],[74,17,74,19],[74,73,74,74],[86,42,86,48],[86,49,86,55],[86,56,86,62],[86,63,86,69],[86,70,86,76],[87,21,87,27],[87,28,87,34],[87,35,87,41],[87,42,87,48],[87,49,87,55],[87,56,87,62],[87,63,87,69],[87,70,87,76],[0,0,5,0],[0,1,5,1],[0,3,1,9],[0,10,1,19],[2,15,2,19],[2,3,5,3],[86,21,86,27],[86,28,86,34],[86,35,86,41],[2,4,5,4],[2,5,5,5],[4,29,5,29],[4,30,4,33],[0,20,0,131],[3,97,3,103],[3,118,3,124],[3,125,3,131],[2,118,2,124],[2,125,2,131],[3,15,5,15],[3,16,3,19],[3,20,3,26],[3,27,3,33],[3,34,3,40],[0,132,3,133],[1,20,1,33],[1,34,1,47],[1,48,1,61],[1,62,1,75],[2,6,5,6],[2,7,5,7],[1,104,1,117],[1,118,1,131],[2,97,2,103],[2,34,2,40],[2,41,2,47],[2,48,2,54],[2,55,2,61],[1,76,1,89],[1,90,1,103],[2,8,5,8],[2,9,5,9],[2,11,5,11],[2,13,5,13],[4,27,5,27],[4,28,5,28],[2,20,2,26],[2,27,2,33],[3,41,3,47],[3,62,3,68],[3,69,3,75],[3,48,3,54],[3,55,3,61],[2,104,2,110],[2,111,2,117],[2,62,2,68],[2,69,2,75],[2,76,2,82],[2,83,2,89],[3,104,3,110],[3,111,3,117],[2,90,2,96],[4,16,5,16],[4,17,5,17],[4,18,5,18],[4,19,5,19],[4,20,5,20],[4,21,5,21],[3,76,3,82],[3,83,3,89],[3,90,3,96],[4,41,5,41],[4,42,5,42],[4,43,5,43],[4,44,4,47],[5,46,5,46],[5,47,5,47],[4,22,5,22],[4,23,4,26],[4,34,5,34],[4,35,5,35],[4,36,5,36],[4,37,4,40],[5,39,5,39],[5,40,5,40],[4,55,5,55],[4,56,5,56],[4,57,5,57],[4,58,4,61],[5,60,5,60],[5,61,5,61],[4,48,5,48],[4,49,5,49],[4,50,5,50],[4,51,4,54],[5,53,5,53],[5,54,5,54],[4,69,5,69],[4,70,5,70],[4,71,5,71],[4,72,4,75],[5,74,5,74],[5,75,5,75],[4,62,5,62],[4,63,5,63],[4,64,5,64],[4,65,4,68],[5,67,5,67],[5,68,5,68],[4,83,5,83],[4,84,5,84],[4,85,5,85],[4,86,4,89],[5,88,5,88],[5,89,5,89],[4,76,5,76],[4,77,5,77],[4,78,5,78],[4,79,4,82],[5,81,5,81],[5,82,5,82],[4,90,5,90],[4,91,5,91],[4,92,5,92],[4,93,4,96],[5,93,5,93],[5,94,5,94],[5,95,5,95],[5,96,5,96],[4,97,5,97],[4,133,5,133],[5,25,5,25],[5,26,5,26],[5,32,5,32],[5,33,5,33],[4,125,5,125],[4,126,5,126],[4,127,5,127],[4,128,4,131],[4,118,5,118],[4,119,5,119],[4,120,5,120],[4,121,4,124],[5,121,5,121],[5,122,5,122],[5,123,5,123],[5,124,5,124],[5,128,5,128],[5,129,5,129],[5,130,5,130],[5,131,5,131],[4,111,5,111],[4,112,5,112],[4,113,5,113],[69,94,69,96],[69,97,69,98],[69,101,69,103],[4,132,5,132],[4,114,4,117],[5,114,5,114],[5,115,5,115],[5,116,5,116],[5,117,5,117],[4,104,5,104],[4,105,5,105],[4,106,5,106],[4,107,4,110],[5,107,5,107],[5,108,5,108],[5,109,5,109],[5,110,5,110],[4,99,5,99],[4,100,4,103],[5,100,5,100],[5,101,5,101],[5,102,5,102],[5,103,5,103],[4,98,5,98],[69,34,69,35],[69,41,69,42],[69,27,69,28],[69,3,69,11],[69,17,69,19],[69,20,69,21],[69,90,69,91],[70,129,70,131],[70,122,70,124],[70,125,70,126],[70,115,70,117],[70,118,70,119],[69,125,69,126],[69,129,69,131],[69,104,69,105],[69,108,69,110],[69,111,69,112],[69,115,69,117],[69,118,69,119],[69,122,69,124],[69,76,69,77],[69,80,69,82],[69,83,69,84],[69,87,69,89],[71,17,71,19],[70,108,70,110],[70,111,70,112],[70,80,70,82],[70,83,70,84],[70,87,70,89],[70,90,70,91],[70,94,70,96],[70,97,70,98],[70,76,70,77],[70,101,70,103],[70,104,70,105],[70,17,70,19],[71,125,71,126],[71,129,71,131],[71,76,71,77],[71,80,71,82],[71,83,71,84],[71,87,71,89],[71,90,71,91],[71,94,71,96],[71,108,71,110],[71,111,71,112],[71,115,71,117],[71,97,71,98],[71,101,71,103],[71,118,71,119],[71,122,71,124],[72,17,72,19],[71,104,71,105],[72,76,72,78],[72,80,72,82],[72,83,72,85],[72,87,72,89],[72,125,72,127],[72,129,72,131],[73,3,73,15],[73,17,73,19],[72,97,72,99],[72,101,72,103],[72,104,72,106],[72,108,72,110],[72,90,72,92],[72,94,72,96],[72,111,72,113],[72,115,72,117],[72,118,72,120],[72,122,72,124],[73,90,73,92],[73,94,73,96],[73,125,73,127],[73,129,73,131],[75,3,75,15],[75,17,75,19],[73,97,73,99],[73,101,73,103],[73,104,73,106],[73,108,73,110],[73,111,73,113],[73,115,73,117],[73,118,73,120],[73,122,73,124],[73,76,73,78],[73,80,73,82],[73,83,73,85],[73,87,73,89],[75,76,75,78],[75,80,75,81],[75,83,75,85],[75,87,75,88],[75,125,75,127],[75,129,75,130],[76,3,76,15],[76,17,76,19],[75,97,75,99],[75,101,75,102],[75,104,75,106],[75,108,75,109],[75,90,75,92],[75,94,75,95],[75,111,75,113],[75,115,75,116],[75,118,75,120],[75,122,75,123],[75,73,75,74],[76,83,76,85],[76,87,76,88],[76,90,76,92],[76,94,76,95],[76,125,76,127],[76,129,76,130],[76,97,76,99],[76,101,76,102],[76,104,76,106],[76,108,76,109],[76,111,76,113],[76,115,76,116],[76,118,76,120],[76,122,76,123],[76,73,76,74],[76,76,76,78],[76,80,76,81],[77,125,77,127],[77,111,77,113],[77,115,77,116],[77,97,77,99],[77,101,77,102],[77,104,77,106],[77,108,77,109],[77,129,77,130],[77,90,77,92],[77,94,77,95],[77,118,77,120],[77,122,77,123],[77,73,77,74],[77,76,77,78],[77,80,77,81],[77,83,77,85],[77,87,77,88],[77,3,77,15],[77,17,77,19],[79,90,79,96],[79,97,79,103],[79,118,79,124],[79,104,79,110],[79,76,79,82],[79,0,83,0],[79,1,79,19],[83,1,83,19],[83,20,83,26],[83,27,83,33],[80,111,80,117],[80,76,80,82],[80,1,80,19],[81,1,81,19],[81,76,81,82],[81,83,81,89],[82,62,82,68],[81,97,81,103],[82,27,82,33],[82,34,82,40],[82,41,82,47],[82,48,82,54],[82,55,82,61],[79,132,83,133],[79,111,79,117],[80,83,80,89],[80,90,80,96],[80,97,80,103],[80,104,80,110],[81,118,81,124],[79,125,79,131],[81,111,81,117],[82,97,82,103],[79,83,79,89],[80,118,80,124],[80,125,80,131],[82,118,82,124],[82,104,82,110],[81,90,81,96],[81,104,81,110],[0,2,5,2],[83,118,83,124],[83,125,83,131],[83,90,83,96],[83,97,83,103],[83,104,83,110],[83,111,83,117],[83,34,83,40],[83,41,83,47],[83,48,83,54],[83,83,83,89],[82,76,82,82],[82,83,82,89],[82,90,82,96],[82,111,82,117],[83,55,83,61],[83,62,83,68],[83,69,83,75],[83,76,83,82],[82,69,82,75],[82,125,82,131],[81,125,81,131],[82,1,82,19],[82,20,82,26]]}
["Индекс","Наименование циклов, разделов,\r\nдисциплин, профессиональных модулей, МДК, практик","Групповые, мелкогрупповые, индивидуальные формы занятий","Формы промежуточной аттестации",null,null,null,null,null,null,"Учебная нагрузка обучающихся, ч.",null,null,null,null,null,null,null,null,null,"Распределение по курсам и семестрам",null,null,null,null,null,null,null,null,null,null,null,null,null,null,null,null,null,null,null,null,null,null,null,null,null,null,null,null,null,null,null,null,null,null,null,null,null,null,null,null,null,null,null,null,null,null,null,null,null,null,null,null,null,null,null,null,null,null,null,null,null,null,null,null,null,null,null,null,null,null,null,null,null,null,null,null,null,null,null,null,null,null,null,null,null,null,null,null,null,null,null,null,null,null,null,null,null,null,null,null,null,null,null,null,null,null,null,null,null,null,null,"Максимальная учебная нагрузка"]
[null,null,null,null,null,null,null,null,null,null,null,null,null,null,null,null,null,null,null,null,"Курс 1",null,null,null,null,null,null,null,null,null,null,null,null,null,"Курс 2",null,null,null,null,null,null,null,null,null,null,null,null,null,"Курс 3",null,null,null,null,null,null,null,null,null,null,null,null,null,"Курс 4",null,null,null,null,null,null,null,null,null,null,null,null,null,"Курс 5",null,null,null,null,null,null,null,null,null,null,null,null,null,"Курс 6",null,null,null,null,null,null,null,null,null,null,null,null,null,"Курс 7",null,null,null,null,null,null,null,null,null,null,null,null,null,"Курс 8"]
[null,null,null,"Экзамены","Зачеты","Диффер. зачеты","Курсовые проекты (работы)","Итоговые письм. КР","Домашние КР","контрольная работа",null,"Максимальная",null,"Самостоятельная",null,"Обязательная",null,null,null,null,"Семестр 1",null,null,null,null,null,null,"Семестр 2",null,null,null,null,null,null,"Семестр 3",null,null,null,null,null,null,"Семестр 4",null,null,null,null,null,null,"Семестр 5",null,null,null,null,null,null,"Семестр 6",null,null,null,null,null,null,"Семестр 7",null,null,null,null,null,null,"Семестр 8",null,null,null,null,null,null,"Семестр 9",null,null,null,null,null,null,"Семестр A",null,null,null,null,null,null,"Семестр B",null,null,null,null,null,null,"Семестр C",null,null,null,null,null,null,"Семестр D",null,null,null,null,null,null,"Семестр E",null,null,null,null,null,null,"Семестр F",null,null,null,null,null,null,"Семестр G"]
[null,null,null,null,null,null,null,null,null,null,null,null,null,null,null,"Всего","в том числе",null,null,null,"16  нед",null,null,null,null,null,null,"20  нед",null,null,null,null,null,null,"16  нед",null,null,null,null,null,null,"20  нед",null,null,null,null,null,null,"16  нед",null,null,null,null,null,null,"20  нед",null,null,null,null,null,null,"16  нед",null,null,null,null,null,null,"19  нед",null,null,null,null,null,null,"26  нед",null,null,null,null,null,null,"26  нед",null,null,null,null,null,null,"26  нед",null,null,null,null,null,null,"26  нед",null,null,null,null,null,null,"26  нед",null,null,null,null,null,null,"26  нед",null,null,null,null,null,null," нед",null,null,null,null,null,null," нед"]
[null,null,null,null,null,null,null,null,null,null,null,null,null,null,null,null,"Теор. обучение","Лаб. и пр. занятия",null,"Курс. проект.","Максим.","Самост.","Всего","в том числе",null,null,null,"Максим.","Самост.","Всего","в том числе",null,null,null,"Максим.","Самост.","Всего","в том числе",null,null,null,"Максим.","Самост.","Всего","в том числе",null,null,null,"Максим.","Самост.","Всего","в том числе",null,null,null,"Максим.","Самост.","Всего","в том числе",null,null,null,"Максим.","Самост.","Всего","в том числе",null,null,null,"Максим.","Самост.","Всего","в том числе",null,null,null,"Максим.","Самост.","Всего","в том числе",null,null,null,"Максим.","Самост.","Всего","в том числе",null,null,null,"Максим.","Самост.","Всего","в том числе",null,null,null,"Максим.","Самост.","Всего","в том числе",null,null,null,"Максим.","Самост.","Всего","в том числе",null,null,null,"Максим.","Самост.","Всего","в том числе",null,null,null,"Максим.","Самост.","Всего","в том числе",null,null,null,"Максим.","Самост.","Всего","в том числе",null,null,null,"Обяз. часть","Вар. часть"]
[null,null,null,null,null,null,null,null,null,null,null,null,null,null,null,null,null,null,null,null,null,null,null,"Теор. обучение","Лаб. и пр. занятия","Лаб. занятия","Курс. проект.",null,null,null,"Теор. обучение","Лаб. и пр. занятия","Лаб. занятия","Курс. проект.",null,null,null,"Теор. обучение","Лаб. и пр. занятия","Лаб. занятия","Курс. проект.",null,null,null,"Теор. обучение","Лаб. и пр. занятия","Лаб. занятия","Курс. проект.",null,null,null,"Теор. обучение","Лаб. и пр. занятия","Лаб. занятия","Курс. проект.",null,null,null,"Теор. обучение","Лаб. и пр. занятия","Лаб. занятия","Курс. проект.",null,null,null,"Теор. обучение","Лаб. и пр. занятия","Лаб. занятия","Курс. проект.",null,null,null,"Теор. обучение","Лаб. и пр. занятия","Лаб. занятия","Курс. проект.",null,null,null,"Теор. обучение","Лаб. и пр. занятия","Лаб. занятия","Курс. проект.",null,null,null,"Теор. обучение","Лаб. и пр. занятия","Лаб. занятия","Курс. проект.",null,null,null,"Теор. обучение","Лаб. и пр. занятия","Лаб. занятия","Курс. проект.",null,null,null,"Теор. обучение","Лаб. и пр. занятия","Лаб. занятия","Курс. проект.",null,null,null,"Теор. обучение","Лаб. и пр. занятия","Лаб. занятия","Курс. проект.",null,null,null,"Теор. обучение","Лаб. и пр. занятия","Лаб. занятия","Курс. проект.",null,null,null,"Теор. обучение","Лаб. и пр. занятия","Лаб. занятия","Курс. проект.",null,null,null,"Теор. обучение","Лаб. и пр. занятия","Лаб. занятия","Курс. проект."]
["1","2",3,4,5,6,"6","7","8",7,"10",8,"12",9,"14",10,11,12,"18",13,"20",14,15,16,17,"25",18,"27",19,20,21,22,"32",23,"34",24,25,26,27,"39",28,"41",29,30,31,32,"46",33,"48",34,35,36,37,"53",38,"55",39,40,41,42,"60",43,"62",44,45,46,47,"67",48,"69",49,50,51,52,"74",53,"76","77","78","79","80","81","82","83","84","85","86","87","88","89","90","91","92","93","94","95","96","97","98","99","100","101","102","103","104","105","106","107","108","109","110","111","112","113","114","115","116","117","118","119","120","121","122","123","124","125","126","127","128","129","130","131",54,55]
[]
[null,"час/нед",null,null,null,null,null,null,null,null,null,null,null,null,null,null,null,null,null,null,31.5,null,{"$f":"W10/16","v":21},null,null,null,null,31.5,null,{"$f":"AD10/20","v":21},null,null,null,null,22.5,null,{"$f":"AK10/16","v":15},null,null,null,null,22.5,null,{"$f":"AR10/20","v":15},null,null,null,null,4.5,null,3,null,null,null,null,4.5,null,3,null,null,null,null,null,null,null,null,null,null,null,null,null,null,null,null,null,null,"NaN",null,"NaN",null,null,null,null,"NaN",null,"NaN",null,null,null,null,"NaN",null,"NaN",null,null,null,null,"NaN",null,"NaN",null,null,null,null,"NaN",null,"NaN",null,null,null,null,"NaN",null,"NaN",null,null,null,null,"NaN",null,"NaN",null,null,null,null,"NaN",null,"NaN"]
["ОУЦ.00","Общеобразовательный учебный цикл",null,3,4,6,null,null,null,14,null,2106,0,702,0,1404,1276,128,null,null,504,168,336,320,16,null,0,null,210,420,380,40,null,0,null,120,240,208,32,null,0,null,150,300,260,40,null,0,null,null,null,null,null,null,null,null,null,null,null,null,null,null,null,null,null,null,null,null,null,null,null,null,null,null,null,null,null,null,null,null,null,null,null,null,null,null,null,null,null,null,null,null,null,null,null,null,null,null,null,null,null,null,null,null,null,null,null,null,null,null,null,null,null,null,null,null,null,null,null,null,null,null,null,null,null,null,null,null,null,null,null,null,1404]
["ОУП.00","Обязательные учебные предметы",null,3,4,6,{"$error":"#REF!"},{"$error":"#REF!"},{"$error":"#REF!"},14,null,1134,0,378,0,756,628,128,null,null,264,88,176,160,16,0,0,330,110,220,180,40,0,0,240,80,160,128,32,0,0,300,100,200,160,40,0,0,null,{"$f":"SUM(AX15:AX21)","v":0},{"$f":"SUM(AY15:AY21)","v":0},{"$f":"SUM(AZ15:AZ21)","v":0},{"$f":"SUM(BA15:BA21)","v":0},null,{"$f":"SUM(BC15:BC21)","v":0},null,{"$f":"SUM(BE15:BE21)","v":0},{"$f":"SUM(BF15:BF21)","v":0},{"$f":"SUM(BG15:BG21)","v":0},{"$f":"SUM(BH15:BH21)","v":0},null,{"$f":"SUM(BJ15:BJ21)","v":0},null,{"$f":"SUM(BL15:BL21)","v":0},{"$f":"SUM(BM15:BM21)","v":0},{"$f":"SUM(BN15:BN21)","v":0},{"$f":"SUM(BO15:BO21)","v":0},null,{"$f":"SUM(BQ15:BQ21)","v":0},null,{"$f":"SUM(BS15:BS21)","v":0},{"$f":"SUM(BT15:BT21)","v":0},{"$f":"SUM(BU15:BU21)","v":0},{"$f":"SUM(BV15:BV21)","v":0},null,{"$f":"SUM(BX15:BX21)","v":0},null,null,null,null,null,null,null,null,null,null,null,null,null,null,null,null,null,null,null,null,null,null,null,null,null,null,null,null,null,null,null,null,null,null,null,null,null,null,null,null,null,null,null,null,null,null,null,null,null,null,null,null,null,null,null,null,756,{"$f":"SUM(ED15:ED21)","v":0}]
["ОУП.01"," Русский язык","гр",4,null,null,null,null,null,123,null,{"$f":"N12+P12","v":108},null,{"$f":"V12+AC12+AJ12+AQ12+AX12+BE12+BL12+BS12","v":36},null,{"$f":"W12+AD12+AK12+AR12+AY12+BF12+BM12+BT12","v":72},72,0,null,null,24,8,16,16,null,null,null,30,10,20,20,null,null,null,24,8,16,16,null,null,null,30,10,20,20,null,null,null,null,null,null,null,null,null,null,null,null,null,null,null,null,null,null,null,null,null,null,null,null,null,null,null,null,null,null,null,null,null,null,null,null,null,null,null,null,null,null,null,null,null,null,null,null,null,null,null,null,null,null,null,null,null,null,null,null,null,null,null,null,null,null,null,null,null,null,null,null,null,null,null,null,null,null,null,null,null,null,null,null,null,null,null,72]
["ОУП.02"," Литература","гр",4,null,null,null,null,null,123,null,{"$f":"N13+P13","v":132},null,{"$f":"V13+AC13+AJ13+AQ13+AX13+BE13+BL13+BS13","v":44},null,88,88,0,null,null,48,16,32,32,null,null,null,30,10,20,20,null,null,null,48,8,16,16,null,null,null,60,10,20,20,null,null,null,null,null,null,null,null,null,null,null,null,null,null,null,null,null,null,null,null,null,null,null,null,null,null,null,null,null,null,null,null,null,null,null,null,null,null,null,null,null,null,null,null,null,null,null,null,null,null,null,null,null,null,null,null,null,null,null,null,null,null,null,null,null,null,null,null,null,null,null,null,null,null,null,null,null,null,null,null,null,null,null,null,null,null,null,124]
["ОУП.03","Родная литература","гр",null,null,null,null,null,null,4,null,54,null,18,null,36,36,null,null,null,null,null,null,null,null,null,null,null,null,null,null,null,null,null,null,8,16,16,null,null,null,null,10,20,20]
["ОУП.04","Иностранный язык","мг",null,null,34,null,null,null,12,null,{"$f":"N15+P15","v":192},null,{"$f":"V15+AC15+AJ15+AQ15+AX15+BE15+BL15+BS15","v":64},null,{"$f":"W15+AD15+AK15+AR15+AY15+BF15+BM15+BT15","v":128},{"$f":"X15+AE15+AL15+AS15+AZ15+BG15+BN15+BU15","v":0},{"$f":"Y15+AF15+AM15+AT15+BA15+BH15+BO15+BV15","v":128},null,null,24,8,16,null,16,null,null,60,20,40,null,40,null,null,48,16,32,null,32,null,null,60,20,40,null,40,null,null,null,null,null,null,null,null,null,null,null,null,null,null,null,null,null,null,null,null,null,null,null,null,null,null,null,null,null,null,null,null,null,null,null,null,null,null,null,null,null,null,null,null,null,null,null,null,null,null,null,null,null,null,null,null,null,null,null,null,null,null,null,null,null,null,null,null,null,null,null,null,null,null,null,null,null,null,null,null,null,null,null,null,null,null,128]
["ОУП.05","Обществознание","гр",null,null,4,null,null,null,null,null,60,null,20,null,40,40,0,null,null,null,null,null,null,null,null,null,null,null,null,null,null,null,null,null,null,null,null,null,null,null,60,20,40,40,null,null,null,null,null,null,null,null,null,null,null,null,null,null,null,null,null,null,null,null,null,null,null,null,null,null,null,null,null,null,null,null,null,null,null,null,null,null,null,null,null,null,null,null,null,null,null,null,null,null,null,null,null,null,null,null,null,null,null,null,null,null,null,null,null,null,null,null,null,null,null,null,null,null,null,null,null,null,null,null,null,null,null,null,null,null,null,40]
["ОУП.06","Математика","мг",3,null,null,null,null,null,12,null,102,null,34,null,{"$f":"W17+AD17+AK17+AR17+AY17+BF17+BM17+BT17","v":68},68,0,null,null,24,8,16,16,null,null,null,30,10,20,20,null,null,null,48,16,32,32,null,null,null,null,null,null,null,null,null,null,null,null,null,null,null,null,null,null,null,null,null,null,null,null,null,null,null,null,null,null,null,null,null,null,null,null,null,null,null,null,null,null,null,null,null,null,null,null,null,null,null,null,null,null,null,null,null,null,null,null,null,null,null,null,null,null,null,null,null,null,null,null,null,null,null,null,null,null,null,null,null,null,null,null,null,null,null,null,null,null,null,null,null,null,68]
["ОУП.07","Естествознание","гр",null,null,2,null,null,null,1,null,{"$f":"N18+P18","v":108},null,{"$f":"V18+AC18+AJ18+AQ18+AX18+BE18+BL18+BS18","v":36},null,72,72,0,null,null,48,16,32,32,null,null,null,60,20,40,40,null,null,null,null,null,null,null,null,null,null,null,null,null,null,null,null,null,null,null,null,null,null,null,null,null,null,null,null,null,null,null,null,null,null,null,null,null,null,null,null,null,null,null,null,null,null,null,null,null,null,null,null,null,null,null,null,null,null,null,null,null,null,null,null,null,null,null,null,null,null,null,null,null,null,null,null,null,null,null,null,null,null,null,null,null,null,null,null,null,null,null,null,null,null,null,null,null,null,null,null,null,72]
["ОУП.08","Астрономия","гр",null,null,4,null,null,null,3,null,{"$f":"N19+P19","v":54},null,{"$f":"V19+AC19+AJ19+AQ19+AX19+BE19+BL19+BS19","v":18},null,36,36,0,null,null,null,null,null,null,null,null,null,null,null,null,null,null,null,null,24,8,16,16,null,null,null,30,10,20,20,null,null,null,null,null,null,null,null,null,null,null,null,null,null,null,null,null,null,null,null,null,null,null,null,null,null,null,null,null,null,null,null,null,null,null,null,null,null,null,null,null,null,null,null,null,null,null,null,null,null,null,null,null,null,null,null,null,null,null,null,null,null,null,null,null,null,null,null,null,null,null,null,null,null,null,null,null,null,null,null,null,null,null,null,null,null,null,36]
["ОУП.09","Основы безопасности и защита Родины","гр",null,null,2,null,null,null,1,null,108,null,36,null,72,72,0,null,null,48,16,32,32,null,null,null,60,20,40,40,null,null,null,null,null,null,null,null,null,null,null,null,null,null,null,null,null,null,null,null,null,null,null,null,null,null,null,null,null,null,null,null,null,null,null,null,null,null,null,null,null,null,null,null,null,null,null,null,null,null,null,null,null,null,null,null,null,null,null,null,null,null,null,null,null,null,null,null,null,null,null,null,null,null,null,null,null,null,null,null,null,null,null,null,null,null,null,null,null,null,null,null,null,null,null,null,null,null,null,null,null,72]
["ОУП.10","Физическая культура","гр",null,1234,null,null,null,null,null,null,216,null,72,null,144,144,0,null,null,48,16,32,32,null,null,null,60,20,40,40,null,null,null,48,16,32,32,null,null,null,60,20,40,40,null,null,null,null,null,null,null,null,null,null,null,null,null,null,null,null,null,null,null,null,null,null,null,null,null,null,null,null,null,null,null,null,null,null,null,null,null,null,null,null,null,null,null,null,null,null,null,null,null,null,null,null,null,null,null,null,null,null,null,null,null,null,null,null,null,null,null,null,null,null,null,null,null,null,null,null,null,null,null,null,null,null,null,null,null,null,null,144]
["ПУП.00","Профильные учебные предметы",null,6,null,1,{"$f":"LEN(#REF!)+LEN(#REF!)+LEN(#REF!)+LEN(#REF!)+LEN(#REF!)+LEN(#REF!)+LEN(#REF!)","v":{"$error":"#REF!"}},{"$f":"LEN(#REF!)+LEN(#REF!)+LEN(#REF!)+LEN(#REF!)+LEN(#REF!)+LEN(#REF!)+LEN(#REF!)","v":{"$error":"#REF!"}},{"$f":"LEN(#REF!)+LEN(#REF!)+LEN(#REF!)+LEN(#REF!)+LEN(#REF!)+LEN(#REF!)+LEN(#REF!)","v":{"$error":"#REF!"}},7,null,972,{"$f":"SUM(M22:M26)","v":0},324,{"$f":"SUM(O22:O26)","v":0},648,648,{"$f":"SUM(R22:R26)","v":0},null,null,240,80,160,160,{"$f":"SUM(Y22:Y26)","v":0},{"$f":"SUM(Z22:Z26)","v":0},{"$f":"SUM(AA22:AA26)","v":0},{"$f":"SUM(AB22:AB26)","v":360},100,200,200,{"$f":"SUM(AF22:AF26)","v":0},{"$f":"SUM(AG22:AG26)","v":0},{"$f":"SUM(AH22:AH26)","v":0},{"$f":"SUM(AI22:AI26)","v":192},40,80,80,{"$f":"SUM(AM22:AM26)","v":0},{"$f":"SUM(AN22:AN26)","v":0},{"$f":"SUM(AO22:AO26)","v":0},{"$f":"SUM(AP22:AP26)","v":240},50,100,100,{"$f":"SUM(AT22:AT26)","v":0},0,0,72,24,48,48,0,0,0,90,30,60,60,0,0,0,0,0,0,0,0,0,0,0,0,0,0,0,0,0,0,{"$f":"SUM(BZ22:BZ26)","v":0},0,0,0,0,0,0,0,0,0,0,0,0,0,0,0,0,0,0,0,0,0,0,0,0,0,0,0,0,0,0,0,{"$f":"SUM(DF22:DF26)","v":0},0,0,0,0,0,0,0,0,0,0,0,0,0,0,0,0,0,0,0,0,0,0,648,{"$f":"SUM(ED22:ED26)","v":0}]
["ПУП.01","История мировой культуры","гр",null,null,4,null,null,null,123,null,{"$f":"N23+P23","v":216},null,{"$f":"V23+AC23+AJ23+AQ23+AX23+BE23+BL23+BS23","v":72},null,{"$f":"W23+AD23+AK23+AR23+AY23+BF23+BM23+BT23","v":144},144,0,null,null,48,16,32,32,null,null,null,60,20,40,40,null,null,null,48,16,32,32,null,null,null,60,20,40,40,null,null,null,null,null,null,null,null,null,null,null,null,null,null,null,null,null,null,null,null,null,null,null,null,null,null,null,null,null,null,null,null,null,null,null,null,null,null,null,null,null,null,null,null,null,null,null,null,null,null,null,null,null,null,null,null,null,null,null,null,null,null,null,null,null,null,null,null,null,null,null,null,null,null,null,null,null,null,null,null,null,null,null,null,null,null,null,144]
["ПУП.02","История","гр",2,null,null,null,null,null,1,null,{"$f":"N24+P24","v":216},null,{"$f":"V24+AC24+AJ24+AQ24+AX24+BE24+BL24+BS24","v":72},null,{"$f":"W24+AD24+AK24+AR24+AY24+BF24+BM24+BT24","v":144},{"$f":"X24+AE24+AL24+AS24+AZ24+BG24+BN24+BU24","v":144},{"$f":"Y24+AF24+AM24+AT24+BA24+BH24+BO24+BV24","v":0},null,null,96,32,64,64,null,null,null,120,40,80,80,null,null,null,null,null,null,null,null,null,null,null,null,null,null,null,null,null,null,null,null,null,null,null,null,null,null,null,null,null,null,null,null,null,null,null,null,null,null,null,null,null,null,null,null,null,null,null,null,null,null,null,null,null,null,null,null,null,null,null,null,null,null,null,null,null,null,null,null,null,null,null,null,null,null,null,null,null,null,null,null,null,null,null,null,null,null,null,null,null,null,null,null,null,null,null,null,null,null,null,null,null,144]
["ПУП.03","Народная музыкальная культура","гр",2,null,null,null,null,null,1,null,{"$f":"N25+P25","v":54},null,{"$f":"V25+AC25+AJ25+AQ25+AX25+BE25+BL25+BS25","v":18},null,{"$f":"W25+AD25+AK25+AR25+AY25+BF25+BM25+BT25","v":36},36,0,null,null,24,8,16,16,null,null,null,30,10,20,20,null,null,null,null,null,null,null,null,null,null,null,null,null,null,null,null,null,null,null,null,null,null,null,null,null,null,null,null,null,null,null,null,null,null,null,null,null,null,null,null,null,null,null,null,null,null,null,null,null,null,null,null,null,null,null,null,null,null,null,null,null,null,null,null,null,null,null,null,null,null,null,null,null,null,null,null,null,null,null,null,null,null,null,null,null,null,null,null,null,null,null,null,null,null,null,null,null,null,null,null,null,36]
["ПУП.04","Музыкальная литература (зарубежная и отечественная)","мг",1246,null,null,null,null,null,35,null,486,null,162,null,324,324,0,null,null,72,24,48,48,null,null,null,90,30,60,60,null,null,null,72,24,48,48,null,null,null,90,30,60,60,null,null,null,72,24,48,48,null,null,null,90,30,60,60,null,null,null,null,null,null,null,null,null,null,null,null,null,null,null,null,null,null,null,null,null,null,null,null,null,null,null,null,null,null,null,null,null,null,null,null,null,null,null,null,null,null,null,null,null,null,null,null,null,null,null,null,null,null,null,null,null,null,null,null,null,null,null,null,null,null,null,null,null,null,null,null,null,324]
[null,"час/нед",null,null,null,null,null,null,null,null,null,null,null,null,null,null,null,null,null,null,22.5,null,15,null,null,null,null,22.4,null,15,null,null,null,null,31.5,null,21,null,null,null,null,31.5,null,21,null,null,null,null,49.5,null,33,null,null,null,null,49.5,null,33,null,null,null,null,54,null,36,null,null,null,null,54,null,36,null,null,null,null,"NaN",null,"NaN",null,null,null,null,"NaN",null,"NaN",null,null,null,null,"NaN",null,"NaN",null,null,null,null,"NaN",null,"NaN",null,null,null,null,"NaN",null,"NaN",null,null,null,null,"NaN",null,"NaN",null,null,null,null,"NaN",null,"NaN",null,null,null,null,"NaN",null,"NaN"]
["ОГСЭ.00","Общий гуманитарный и социально-экономический цикл",null,{"$f":"LEN(D29)+LEN(D30)+LEN(D31)+LEN(D32)+LEN(D33)","v":1},{"$f":"LEN(E29)+LEN(E30)+LEN(E31)+LEN(E32)+LEN(E33)","v":3},3,0,0,0,3,null,{"$f":"SUM(L29:L33)","v":531},{"$f":"SUM(M29:M33)","v":0},177,0,354,192,162,null,null,null,{"$f":"SUM(V29:V33)","v":0},0,0,0,0,0,0,0,0,0,0,0,0,59,11,48,48,0,0,0,0,0,0,0,0,0,0,167,55,112,48,64,0,0,108,48,60,0,60,0,0,145,49,96,96,0,0,0,52,14,38,0,38,0,0,0,0,0,0,0,0,0,0,0,{"$f":"SUM(CH29:CH33)","v":0},0,0,0,0,0,0,0,0,0,0,0,0,0,0,0,0,0,0,0,0,0,0,0,0,0,0,0,0,0,0,0,0,0,0,0,0,0,0,0,0,0,0,0,0,0,0,{"$f":"SUM(EC29:EC33)","v":354},{"$f":"SUM(ED29:ED33)","v":0}]
["ОГСЭ.01","Основы философии","гр",null,null,5,null,null,null,null,null,{"$f":"N29+P29","v":59},null,{"$f":"V29+AC29+AJ29+AQ29+AX29+BE29+BL29+BS29","v":11},null,{"$f":"W29+AD29+AK29+AR29+AY29+BF29+BM29+BT29","v":48},48,0,null,null,null,null,null,null,null,null,null,null,null,null,null,null,null,null,null,null,null,null,null,null,null,null,null,null,null,null,null,null,59,11,48,48,null,null,null,null,null,null,null,null,null,null,null,null,null,null,null,null,null,null,null,null,null,null,null,null,null,null,null,null,null,null,null,null,null,null,null,null,null,null,null,null,null,null,null,null,null,null,null,null,null,null,null,null,null,null,null,null,null,null,null,null,null,null,null,null,null,null,null,null,null,null,null,null,null,null,null,null,null,null,null,null,48]
["ОГСЭ.02","История","гр",3,null,null,null,null,null,null,null,{"$f":"N30+P30","v":59},null,{"$f":"V30+AC30+AJ30+AQ30+AX30+BE30+BL30+BS30","v":11},null,48,48,0,null,null,null,null,null,null,null,null,null,null,null,null,null,null,null,null,59,11,48,48,null,null,null,null,null,null,null,null,null,null,null,null,null,null,null,null,null,null,null,null,null,null,null,null,null,null,null,null,null,null,null,null,null,null,null,null,null,null,null,null,null,null,null,null,null,null,null,null,null,null,null,null,null,null,null,null,null,null,null,null,null,null,null,null,null,null,null,null,null,null,null,null,null,null,null,null,null,null,null,null,null,null,null,null,null,null,null,null,null,null,null,null,null,null,48]
["ОГСЭ.03","Психология общения","гр",null,null,7,null,null,null,null,null,{"$f":"N31+P31","v":59},null,{"$f":"V31+AC31+AJ31+AQ31+AX31+BE31+BL31+BS31","v":11},null,48,48,0,null,null,null,null,null,null,null,null,null,null,null,null,null,null,null,null,null,null,null,null,null,null,null,null,null,null,null,null,null,null,null,null,null,null,null,null,null,null,null,null,null,null,null,null,59,11,48,48,null,null,null,null,null,null,null,null,null,null,null,null,null,null,null,null,null,null,null,null,null,null,null,null,null,null,null,null,null,null,null,null,null,null,null,null,null,null,null,null,null,null,null,null,null,null,null,null,null,null,null,null,null,null,null,null,null,null,null,null,null,null,null,null,null,null,48]
["ОГСЭ.04","Иностранный язык","мг",null,null,8,null,null,null,567,null,{"$f":"N32+P32","v":146},null,{"$f":"V32+AC32+AJ32+AQ32+AX32+BE32+BL32+BS32","v":40},null,106,16,90,null,null,null,null,null,null,null,null,null,null,null,null,null,null,null,null,null,null,null,null,null,null,null,null,null,null,null,null,null,null,44,12,32,null,32,null,null,28,8,20,null,20,null,null,22,6,16,16,null,null,null,52,14,38,null,38,null,null,null,null,null,null,null,null,null,null,null,null,null,null,null,null,null,null,null,null,null,null,null,null,null,null,null,null,null,null,null,null,null,null,null,null,null,null,null,null,null,null,null,null,null,null,null,null,null,null,null,null,null,null,null,null,null,null,106]
["ОГСЭ.05","Физическая культура","гр",null,567,null,null,null,null,null,null,{"$f":"N33+P33","v":208},null,{"$f":"V33+AC33+AJ33+AQ33+AX33+BE33+BL33+BS33","v":104},null,104,32,72,null,null,null,null,null,null,null,null,null,null,null,null,null,null,null,null,null,null,null,null,null,null,null,null,null,null,null,null,null,null,64,32,32,null,32,null,null,80,40,40,null,40,null,null,64,32,32,32,null,null,null,null,null,null,null,null,null,null,null,null,null,null,null,null,null,null,null,null,null,null,null,null,null,null,null,null,null,null,null,null,null,null,null,null,null,null,null,null,null,null,null,null,null,null,null,null,null,null,null,null,null,null,null,null,null,null,null,null,null,null,null,null,null,null,104]
["П","Профессиональный цикл",null,{"$f":"D35+D43","v":17},{"$f":"E35+E43","v":1},{"$f":"F35+F43","v":14},null,null,null,{"$f":"J35+J43","v":54},null,null,null,null,null,2706]
["ОП.00","Общепрофессиональные дисциплины",null,{"$f":"LEN(D36)+LEN(D37)+LEN(D38)+LEN(D39)+LEN(D40)+LEN(D41)+LEN(D42)","v":6},{"$f":"LEN(E36)+LEN(E37)+LEN(E38)+LEN(E39)+LEN(E40)+LEN(E41)+LEN(E42)","v":0},6,0,0,0,11,null,{"$f":"SUM(L36:L42)","v":1282},{"$f":"SUM(M36:M42)","v":0},427,0,855,401,454,null,null,96,{"$f":"SUM(V36:V42)","v":32},64,0,64,0,0,120,40,80,0,80,0,0,96,32,64,32,32,0,0,120,40,80,40,40,0,0,120,40,80,48,32,0,0,150,70,140,80,60,0,0,264,88,176,144,32,0,0,256,85,171,57,114,0,0,0,0,0,0,0,0,0,0,0,{"$f":"SUM(CH36:CH42)","v":0},0,0,0,0,0,0,0,0,0,0,0,0,0,0,0,0,0,0,0,0,0,0,0,0,0,0,0,0,0,0,0,0,0,0,0,0,0,0,0,0,0,0,0,0,0,0,{"$f":"SUM(EC36:EC42)","v":815},{"$f":"SUM(ED36:ED42)","v":40}]
["ОП.01","Музыкальная литература (зарубежная и отечественная)","мг",8,null,null,null,null,null,7,null,{"$f":"N36+P36","v":157},null,{"$f":"V36+AC36+AJ36+AQ36+AX36+BE36+BL36+BS36","v":52},null,{"$f":"W36+AD36+AK36+AR36+AY36+BF36+BM36+BT36","v":105},{"$f":"X36+AE36+AL36+AS36+AZ36+BG36+BN36+BU36","v":105},{"$f":"Y36+AF36+AM36+AT36+BA36+BH36+BO36+BV36","v":0},null,null,null,null,null,null,null,null,null,null,null,null,null,null,null,null,null,null,null,null,null,null,null,null,null,null,null,null,null,null,null,null,null,null,null,null,null,null,null,null,null,null,null,null,72,24,48,48,null,null,null,85,28,57,57,null,null,null,null,null,null,null,null,null,null,null,null,null,null,null,null,null,null,null,null,null,null,null,null,null,null,null,null,null,null,null,null,null,null,null,null,null,null,null,null,null,null,null,null,null,null,null,null,null,null,null,null,null,null,null,null,null,null,null,105]
["ОП.02","Сольфеджио","мг",46,null,28,null,null,null,1357,null,{"$f":"N37+P37","v":459},null,{"$f":"V37+AC37+AJ37+AQ37+AX37+BE37+BL37+BS37","v":153},null,{"$f":"W37+AD37+AK37+AR37+AY37+BF37+BM37+BT37","v":306},{"$f":"X37+AE37+AL37+AS37+AZ37+BG37+BN37+BU37","v":0},{"$f":"Y37+AF37+AM37+AT37+BA37+BH37+BO37+BV37","v":306},null,null,48,16,32,null,32,null,null,60,20,40,null,40,null,null,48,16,32,null,32,null,null,60,20,40,null,40,null,null,48,16,32,null,32,null,null,60,30,60,null,60,null,null,48,16,32,null,32,null,null,57,19,38,null,38,null,null,null,null,null,null,null,null,null,null,null,null,null,null,null,null,null,null,null,null,null,null,null,null,null,null,null,null,null,null,null,null,null,null,null,null,null,null,null,null,null,null,null,null,null,null,null,null,null,null,null,null,null,null,null,null,null,null,286,20]
["ОП.03","Элементарная теория музыки","мг",2,null,1,null,null,null,null,null,108,null,36,null,72,0,72,null,null,48,16,32,null,32,null,null,60,20,40,null,40,null,null,null,null,null,null,null,null,null,null,null,null,null,null,null,null,null,null,null,null,null,null,null,null,null,null,null,null,null,null,null,null,null,null,null,null,null,null,null,null,null,null,null,null,null,null,null,null,null,null,null,null,null,null,null,null,null,null,null,null,null,null,null,null,null,null,null,null,null,null,null,null,null,null,null,null,null,null,null,null,null,null,null,null,null,null,null,null,null,null,null,null,null,null,null,null,null,null,null,null,72]
["ОП.04","Гармония","мг",57,null,null,null,null,null,346,null,294,null,98,null,196,196,0,null,null,null,null,null,null,null,null,null,null,null,null,null,null,null,null,48,16,32,32,null,null,null,60,20,40,40,null,null,null,48,16,32,32,null,null,null,60,30,60,60,null,null,null,48,16,32,32,null,null,null,null,null,null,null,null,null,null,null,null,null,null,null,null,null,null,null,null,null,null,null,null,null,null,null,null,null,null,null,null,null,null,null,null,null,null,null,null,null,null,null,null,null,null,null,null,null,null,null,null,null,null,null,null,null,null,null,null,null,null,null,null,null,null,176,20]
["ОП.05","Анализ музыкальных произведений","мг",null,null,8,null,null,null,null,null,57,null,19,null,38,0,38,null,null,null,null,null,null,null,null,null,null,null,null,null,null,null,null,null,null,null,null,null,null,null,null,null,null,null,null,null,null,null,null,null,null,null,null,null,null,null,null,null,null,null,null,null,null,null,null,null,null,null,57,19,38,null,38,null,null,null,null,null,null,null,null,null,null,null,null,null,null,null,null,null,null,null,null,null,null,null,null,null,null,null,null,null,null,null,null,null,null,null,null,null,null,null,null,null,null,null,null,null,null,null,null,null,null,null,null,null,null,null,null,null,null,38]
["ОП.06","Музыкальная информатика","мг",null,null,7,null,null,null,8,null,105,null,35,null,70,32,38,null,null,null,null,null,null,null,null,null,null,null,null,null,null,null,null,null,null,null,null,null,null,null,null,null,null,null,null,null,null,null,null,null,null,null,null,null,null,null,null,null,null,null,null,48,16,32,32,null,null,null,57,19,38,null,38,null,null,null,null,null,null,null,null,null,null,null,null,null,null,null,null,null,null,null,null,null,null,null,null,null,null,null,null,null,null,null,null,null,null,null,null,null,null,null,null,null,null,null,null,null,null,null,null,null,null,null,null,null,null,null,null,null,null,70]
["ОП.07","Безопасность жизнедеятельности","гр",null,null,7,null,null,null,56,null,102,null,34,null,68,68,0,null,null,null,null,null,null,null,null,null,null,null,null,null,null,null,null,null,null,null,null,null,null,null,null,null,null,null,null,null,null,24,8,16,16,null,null,null,30,10,20,20,null,null,null,48,16,32,32,null,null,null,null,null,null,null,null,null,null,null,null,null,null,null,null,null,null,null,null,null,null,null,null,null,null,null,null,null,null,null,null,null,null,null,null,null,null,null,null,null,null,null,null,null,null,null,null,null,null,null,null,null,null,null,null,null,null,null,null,null,null,null,null,null,null,68]
["ПМ","Профессиональные модули",null,11,1,8,null,null,null,43,null,null,null,null,null,1851]
["ПМ.01","Дирижерско-хоровая деятельность",null,8,{"$f":"LEN(E45)+LEN(E46)+LEN(E47)+LEN(E48)+LEN(E49)+LEN(E50)+LEN(E52)+LEN(E53)","v":0},7,0,0,0,32,null,{"$f":"SUM(L45:L55)","v":1966},{"$f":"SUM(M45:M53)","v":0},{"$f":"SUM(N45:N55)","v":655},0,{"$f":"SUM(P45:P55)","v":1311},203,766,null,null,123,{"$f":"SUM(V45:V53)","v":40},80,0,80,0,0,153,50,100,0,100,0,0,120,48,96,16,80,0,0,180,60,120,40,80,0,0,192,64,128,32,96,0,0,300,100,200,80,120,0,0,168,56,112,16,96,0,0,215,66,133,19,114,0,0,0,0,0,0,0,0,0,0,0,{"$f":"SUM(CH45:CH53)","v":0},0,0,0,0,0,0,0,0,0,0,0,0,0,0,0,0,0,0,0,0,0,0,0,0,0,0,0,0,0,0,0,0,0,0,0,0,0,0,0,0,0,0,0,0,0,0,{"$f":"SUM(EC45:EC53)","v":893},{"$f":"SUM(ED45:ED53)","v":76}]
["МДК.01.01","Дирижирование,чтение хоровых партитур, хороведение: дирижирование","инд",246,null,1357,null,null,null,8,null,{"$f":"N45+P45","v":507},null,{"$f":"V45+AC45+AJ45+AQ45+AX45+BE45+BL45+BS45","v":169},null,{"$f":"W45+AD45+AK45+AR45+AY45+BF45+BM45+BT45","v":338},{"$f":"X45+AE45+AL45+AS45+AZ45+BG45+BN45+BU45","v":0},{"$f":"Y45+AF45+AM45+AT45+BA45+BH45+BO45+BV45","v":338},null,null,75,24,48,null,48,null,null,93,30,60,null,60,null,null,48,24,48,null,48,null,null,60,20,40,null,40,null,null,48,16,32,null,32,null,null,60,20,40,null,40,null,null,48,16,32,null,32,null,null,57,19,38,null,38,null,null,null,null,null,null,null,null,null,null,null,null,null,null,null,null,null,null,null,null,null,null,null,null,null,null,null,null,null,null,null,null,null,null,null,null,null,null,null,null,null,null,null,null,null,null,null,null,null,null,null,null,null,null,null,null,null,null,338]
[null,"Дирижирование,чтение хоровых партитур, хороведение: чтение хоровых партитур","инд",null,null,null,null,null,null,3478,null,{"$f":"N46+P46","v":106},null,{"$f":"V46+AC46+AJ46+AQ46+AX46+BE46+BL46+BS46","v":35},null,{"$f":"W46+AD46+AK46+AR46+AY46+BF46+BM46+BT46","v":71},{"$f":"X46+AE46+AL46+AS46+AZ46+BG46+BN46+BU46","v":71},{"$f":"Y46+AF46+AM46+AT46+BA46+BH46+BO46+BV46","v":0},null,null,null,null,null,null,null,null,null,null,null,null,null,null,null,null,24,8,16,16,null,null,null,30,10,20,20,null,null,null,null,null,null,null,null,null,null,null,null,null,null,null,null,null,24,8,16,16,null,null,null,28,9,19,19,null,null,null,null,null,null,null,null,null,null,null,null,null,null,null,null,null,null,null,null,null,null,null,null,null,null,null,null,null,null,null,null,null,null,null,null,null,null,null,null,null,null,null,null,null,null,null,null,null,null,null,null,null,null,null,null,null,null,null,55,16]
[null,"Дирижирование,чтение хоровых партитур, хороведение: хороведение","гр",null,null,6,null,null,null,5,null,108,null,36,null,72,72,0,null,null,null,null,null,null,null,null,null,null,null,null,null,null,null,null,null,null,null,null,null,null,null,null,null,null,null,null,null,null,48,16,32,32,null,null,null,60,20,40,40,null,null,null,null,null,null,null,null,null,null,null,null,null,null,null,null,null,null,null,null,null,null,null,null,null,null,null,null,null,null,null,null,null,null,null,null,null,null,null,null,null,null,null,null,null,null,null,null,null,null,null,null,null,null,null,null,null,null,null,null,null,null,null,null,null,null,null,null,null,null,null,null,null,72]
["МДК.01.02","Фортепиано, аккомпанемент и чтение с листа: фортепиано","инд",35,null,null,null,null,null,124678,null,214,null,71,null,143,0,143,null,null,24,8,16,null,16,null,null,30,10,20,null,20,null,null,24,8,16,null,16,null,null,30,10,20,null,20,null,null,24,8,16,null,16,null,null,30,10,20,null,20,null,null,24,8,16,null,16,null,null,28,9,19,null,19,null,null,null,null,null,null,null,null,null,null,null,null,null,null,null,null,null,null,null,null,null,null,null,null,null,null,null,null,null,null,null,null,null,null,null,null,null,null,null,null,null,null,null,null,null,null,null,null,null,null,null,null,null,null,null,null,null,null,143]
[null,"Фортепиано, аккомпанемент и чтение с листа: аккомпанемент","инд",null,null,null,null,null,null,56,null,54,null,18,null,36,0,36,null,null,null,null,null,null,null,null,null,null,null,null,null,null,null,null,null,null,null,null,null,null,null,null,null,null,null,null,null,null,24,8,16,null,16,null,null,30,10,20,null,20,null,null,null,null,null,null,null,null,null,null,null,null,null,null,null,null,null,null,null,null,null,null,null,null,null,null,null,null,null,null,null,null,null,null,null,null,null,null,null,null,null,null,null,null,null,null,null,null,null,null,null,null,null,null,null,null,null,null,null,null,null,null,null,null,null,null,null,null,null,null,null,null,36]
[null,"Фортепиано, аккомпанемент и чтение с листа: чтение с листа","инд",null,null,null,null,null,null,78,null,52,null,17,null,35,0,35,null,null,null,null,null,null,null,null,null,null,null,null,null,null,null,null,null,null,null,null,null,null,null,null,null,null,null,null,null,null,null,null,null,null,null,null,null,null,null,null,null,null,null,null,24,8,16,null,16,null,null,28,9,19,null,19,null,null,null,null,null,null,null,null,null,null,null,null,null,null,null,null,null,null,null,null,null,null,null,null,null,null,null,null,null,null,null,null,null,null,null,null,null,null,null,null,null,null,null,null,null,null,null,null,null,null,null,null,null,null,null,null,null,null,35]
[null,"Дополнительный инструмент","инд",6,null,null,null,null,null,4,null,{"$f":"N51+P51","v":90},null,{"$f":"V51+AC51+AJ51+AQ51+AX51+BE51+BL51+BS51","v":30},null,{"$f":"W51+AD51+AK51+AR51+AY51+BF51+BM51+BT51","v":60},{"$f":"X51+AE51+AL51+AS51+AZ51+BG51+BN51+BU51","v":60},{"$f":"Y51+AF51+AM51+AT51+BA51+BH51+BO51+BV51","v":0},null,null,null,null,null,null,null,null,null,null,null,null,null,null,null,null,null,null,null,null,null,null,null,30,10,20,20,null,null,null,null,null,null,null,null,null,null,60,20,40,40,null,null,null,null,null,null,null,null,null,null,null,null,null,null,null,null,null,null,null,null,null,null,null,null,null,null,null,null,null,null,null,null,null,null,null,null,null,null,null,null,null,null,null,null,null,null,null,null,null,null,null,null,null,null,null,null,null,null,null,null,null,null,null,null,null,null,null,null,null,null,null,null,null,null,60]
["МДК.01.03","Постановка голоса, вокальный ансамбль: постановка голоса","инд",5,null,null,null,null,null,1234768,null,215,null,72,null,143,0,143,null,null,24,8,16,null,16,null,null,30,10,20,null,20,null,null,24,8,16,null,16,null,null,30,10,20,null,20,null,null,24,8,16,null,16,null,null,30,10,20,null,20,null,null,24,8,16,null,16,null,null,28,10,19,null,19,null,null,null,null,null,null,null,null,null,null,null,null,null,null,null,null,null,null,null,null,null,null,null,null,null,null,null,null,null,null,null,null,null,null,null,null,null,null,null,null,null,null,null,null,null,null,null,null,null,null,null,null,null,null,null,null,null,null,143]
[null,"Постановка голоса, вокальный ансамбль: вокальный ансамбль","мг",7,null,6,null,null,null,58,null,107,null,36,null,71,0,71,null,null,null,null,null,null,null,null,null,null,null,null,null,null,null,null,null,null,null,null,null,null,null,null,null,null,null,null,null,null,24,8,16,null,16,null,null,30,10,20,null,20,null,null,24,8,16,null,16,null,null,46,10,19,null,19,null,null,null,null,null,null,null,null,null,null,null,null,null,null,null,null,null,null,null,null,null,null,null,null,null,null,null,null,null,null,null,null,null,null,null,null,null,null,null,null,null,null,null,null,null,null,null,null,null,null,null,null,null,null,null,null,null,null,71]
[null,"Сценическое мастерство и сценическая речь","гр",null,null,null,null,null,null,48,null,{"$f":"N54+P54","v":87},null,{"$f":"V54+AC54+AJ54+AQ54+AX54+BE54+BL54+BS54","v":29},null,{"$f":"W54+AD54+AK54+AR54+AY54+BF54+BM54+BT54","v":58},{"$f":"X54+AE54+AL54+AS54+AZ54+BG54+BN54+BU54","v":58},{"$f":"Y54+AF54+AM54+AT54+BA54+BH54+BO54+BV54","v":0},null,null,null,null,null,null,null,null,null,null,null,null,null,null,null,null,null,null,null,null,null,null,null,30,10,20,20,null,null,null,null,null,null,null,null,null,null,null,null,null,null,null,null,null,null,null,null,null,null,null,null,49,19,38,38,null,null,null,null,null,null,null,null,null,null,null,null,null,null,null,null,null,null,null,null,null,null,null,null,null,null,null,null,null,null,null,null,null,null,null,null,null,null,null,null,null,null,null,null,null,null,null,null,null,null,null,null,null,null,null,null,null,null,null,null,58]
["МДК.01.04","Хоровой класс","гр",null,null,1,null,null,null,2347,null,{"$f":"N55+P55","v":426},null,{"$f":"V55+AC55+AJ55+AQ55+AX55+BE55+BL55+BS55","v":142},null,284,0,284,null,null,141,48,96,null,96,null,null,175,60,120,null,120,null,null,21,8,16,null,16,null,null,28,10,20,null,20,null,null,null,null,null,null,null,null,null,null,null,null,null,null,null,null,60,16,32,null,32,null,null,null,null,null,null,null,null,null,null,null,null,null,null,null,null,null,null,null,null,null,null,null,null,null,null,null,null,null,null,null,null,null,null,null,null,null,null,null,null,null,null,null,null,null,null,null,null,null,null,null,null,null,null,null,null,null,null,null,null,null,null,null,null,null,null,284]
["ПМ.02","Педагогичесская деятельность",null,{"$f":"LEN(D57)+LEN(D58)+LEN(D59)+LEN(D60)+LEN(D61)+LEN(D62)+LEN(D63)+LEN(D64)+LEN(D65)+LEN(D66)","v":3},{"$f":"LEN(E57)+LEN(E58)+LEN(E59)+LEN(E60)+LEN(E61)+LEN(E62)+LEN(E63)+LEN(E64)+LEN(E65)+LEN(E66)","v":1},1,0,0,0,11,null,{"$f":"SUM(L57:L66)","v":811},0,271,0,540,460,{"$f":"SUM(R57:R66)","v":80},null,null,null,{"$f":"SUM(V57:V66)","v":0},0,0,0,0,0,0,0,0,0,0,0,0,48,16,32,32,0,0,0,60,40,80,40,40,0,0,120,40,80,80,0,0,0,90,50,100,60,40,0,0,144,48,96,96,0,0,0,227,77,152,152,0,0,0,0,0,0,0,0,0,0,0,0,{"$f":"SUM(CH57:CH66)","v":0},0,0,0,0,0,0,0,0,0,0,0,0,0,0,0,0,0,0,0,0,0,0,0,0,0,0,0,0,0,0,0,0,0,0,0,0,0,0,0,0,0,0,0,0,0,0,{"$f":"SUM(EC57:EC66)","v":422},{"$f":"SUM(ED57:ED66)","v":118}]
["МДК.02.01","Педагогические основы преподавания творческих дисциплин: основы педагогики","гр",null,null,null,null,null,null,34,null,{"$f":"N57+P57","v":108},null,{"$f":"V57+AC57+AJ57+AQ57+AX57+BE57+BL57+BS57","v":36},null,{"$f":"W57+AD57+AK57+AR57+AY57+BF57+BM57+BT57","v":72},{"$f":"X57+AE57+AL57+AS57+AZ57+BG57+BN57+BU57","v":72},{"$f":"Y57+AF57+AM57+AT57+BA57+BH57+BO57+BV57","v":0},null,null,null,null,null,null,null,null,null,null,null,null,null,null,null,null,48,16,32,32,null,null,null,60,20,40,40,null,null,null,null,null,null,null,null,null,null,null,null,null,null,null,null,null,null,null,null,null,null,null,null,null,null,null,null,null,null,null,null,null,null,null,null,null,null,null,null,null,null,null,null,null,null,null,null,null,null,null,null,null,null,null,null,null,null,null,null,null,null,null,null,null,null,null,null,null,null,null,null,null,null,null,null,null,null,null,null,null,null,null,null,null,null,null,72]
[null,"Педагогические основы преподавания творческих дисциплин: возрастная психология","гр",null,null,null,null,null,null,56,null,54,null,18,null,36,36,0,null,null,null,null,null,null,null,null,null,null,null,null,null,null,null,null,null,null,null,null,null,null,null,null,null,null,null,null,null,null,24,8,16,16,null,null,null,30,10,20,20,null,null,null,null,null,null,null,null,null,null,null,null,null,null,null,null,null,null,null,null,null,null,null,null,null,null,null,null,null,null,null,null,null,null,null,null,null,null,null,null,null,null,null,null,null,null,null,null,null,null,null,null,null,null,null,null,null,null,null,null,null,null,null,null,null,null,null,null,null,null,null,null,null,36]
[null,"Педагогические основы преподавания творческих ди сциплин: хоровая литература","гр",6,null,null,null,null,null,5,null,156,null,52,null,104,104,0,null,null,null,null,null,null,null,null,null,null,null,null,null,null,null,null,null,null,null,null,null,null,null,null,null,null,null,null,null,null,96,32,64,64,null,null,null,60,20,40,40,null,null,null,null,null,null,null,null,null,null,null,null,null,null,null,null,null,null,null,null,null,null,null,null,null,null,null,null,null,null,null,null,null,null,null,null,null,null,null,null,null,null,null,null,null,null,null,null,null,null,null,null,null,null,null,null,null,null,null,null,null,null,null,null,null,null,null,null,null,null,null,null,null,104]
[null,"Педагогические основы преподавания творческих дисциплин: основы психологии музыкального восприятия","гр",8,null,null,null,null,null,null,null,57,null,19,null,38,38,0,null,null,null,null,null,null,null,null,null,null,null,null,null,null,null,null,null,null,null,null,null,null,null,null,null,null,null,null,null,null,null,null,null,null,null,null,null,null,null,null,null,null,null,null,null,null,null,null,null,null,null,57,19,38,38,null,null,null,null,null,null,null,null,null,null,null,null,null,null,null,null,null,null,null,null,null,null,null,null,null,null,null,null,null,null,null,null,null,null,null,null,null,null,null,null,null,null,null,null,null,null,null,null,null,null,null,null,null,null,null,null,null,null,null,null,38]
["МДК.02.02","Учебно-методическое обеспечение учебного процесса: изучение репертуара детских хоров","инд",null,null,8,null,null,null,7,null,53,null,18,null,35,35,0,null,null,null,null,null,null,null,null,null,null,null,null,null,null,null,null,null,null,null,null,null,null,null,null,null,null,null,null,null,null,null,null,null,null,null,null,null,null,null,null,null,null,null,null,24,8,16,16,null,null,null,28,10,19,19,null,null,null,null,null,null,null,null,null,null,null,null,null,null,null,null,null,null,null,null,null,null,null,null,null,null,null,null,null,null,null,null,null,null,null,null,null,null,null,null,null,null,null,null,null,null,null,null,null,null,null,null,null,null,null,null,null,null,null,35]
[null,"Учебно- методическое обеспечение учебного процесса: аранжировка для ансамбля и хора","инд",null,null,null,null,null,null,78,null,53,null,18,null,35,35,0,null,null,null,null,null,null,null,null,null,null,null,null,null,null,null,null,null,null,null,null,null,null,null,null,null,null,null,null,null,null,null,null,null,null,null,null,null,null,null,null,null,null,null,null,24,8,16,16,null,null,null,28,10,19,19,null,null,null,null,null,null,null,null,null,null,null,null,null,null,null,null,null,null,null,null,null,null,null,null,null,null,null,null,null,null,null,null,null,null,null,null,null,null,null,null,null,null,null,null,null,null,null,null,null,null,null,null,null,null,null,null,null,null,null,35]
[null,"Учебно-методическое обеспечение учебного процесса: методика преподавания хоровых дисциплин","гр",7,null,null,null,null,null,8,null,105,null,35,null,70,70,0,null,null,null,null,null,null,null,null,null,null,null,null,null,null,null,null,null,null,null,null,null,null,null,null,null,null,null,null,null,null,null,null,null,null,null,null,null,null,null,null,null,null,null,null,48,16,32,32,null,null,null,57,19,38,38,null,null,null,null,null,null,null,null,null,null,null,null,null,null,null,null,null,null,null,null,null,null,null,null,null,null,null,null,null,null,null,null,null,null,null,null,null,null,null,null,null,null,null,null,null,null,null,null,null,null,null,null,null,null,null,null,null,null,null,70]
[null,"Учебно-методическое обеспечение учебного процесса: методика преподавания сольфеджио","гр",null,null,null,null,null,null,7,null,48,null,16,null,32,32,0,null,null,null,null,null,null,null,null,null,null,null,null,null,null,null,null,null,null,null,null,null,null,null,null,null,null,null,null,null,null,null,null,null,null,null,null,null,null,null,null,null,null,null,null,48,16,32,32,null,null,null,null,null,null,null,null,null,null,null,null,null,null,null,null,null,null,null,null,null,null,null,null,null,null,null,null,null,null,null,null,null,null,null,null,null,null,null,null,null,null,null,null,null,null,null,null,null,null,null,null,null,null,null,null,null,null,null,null,null,null,null,null,null,null,32]
[null,"Хоровое сольфеджио","гр",null,null,null,null,null,null,4,null,120,null,40,null,80,0,80,null,null,null,null,null,null,null,null,null,null,null,null,null,null,null,null,null,null,null,null,null,null,null,null,20,40,null,40,null,null,null,null,null,null,null,null,null,null,20,40,null,40,null,null,null,null,null,null,null,null,null,null,null,null,null,null,null,null,null,null,null,null,null,null,null,null,null,null,null,null,null,null,null,null,null,null,null,null,null,null,null,null,null,null,null,null,null,null,null,null,null,null,null,null,null,null,null,null,null,null,null,null,null,null,null,null,null,null,null,null,null,null,null,null,null,80]
[null,"Учебно-методическое обеспечение учебного процесса: Физическая культура (ритмика)","гр",null,8,null,null,null,null,null,null,57,null,19,null,38,38,0,null,null,null,null,null,null,null,null,null,null,null,null,null,null,null,null,null,null,null,null,null,null,null,null,null,null,null,null,null,null,null,null,null,null,null,null,null,null,null,null,null,null,null,null,null,null,null,null,null,null,null,57,19,38,38,null,null,null,null,null,null,null,null,null,null,null,null,null,null,null,null,null,null,null,null,null,null,null,null,null,null,null,null,null,null,null,null,null,null,null,null,null,null,null,null,null,null,null,null,null,null,null,null,null,null,null,null,null,null,null,null,null,null,null,38]
["УП.00","Учебная практика",null,{"$f":"LEN(D68)+LEN(D69)","v":0},0,2,0,0,0,{"$f":"LEN(J68)+LEN(J69)","v":7},null,{"$f":"SUM(L68:L69)","v":1026},{"$f":"SUM(M68:M69)","v":0},342,0,684,0,684,null,null,null,{"$f":"SUM(V68:V69)","v":0},0,0,0,0,0,0,0,0,0,0,0,0,136,40,80,0,80,0,0,163,50,100,0,100,0,0,193,64,128,0,128,0,0,227,80,160,0,160,0,0,83,32,64,0,64,0,0,208,76,152,0,152,0,0,0,0,0,0,0,0,0,0,0,{"$f":"SUM(CH68:CH69)","v":0},0,0,0,0,0,0,0,0,0,0,0,0,0,0,0,0,0,0,0,0,0,0,0,0,0,0,0,0,0,0,0,0,0,0,0,0,0,0,0,0,0,0,0,0,0,0,{"$f":"SUM(EC68:EC69)","v":684},{"$f":"SUM(ED68:ED69)","v":0}]
["УП.01","Хоровой класс","гр",null,null,56,null,null,null,3478,null,{"$f":"N68+P68","v":861},null,{"$f":"V68+AC68+AJ68+AQ68+AX68+BE68+BL68+BS68","v":287},null,{"$f":"W68+AD68+AK68+AR68+AY68+BF68+BM68+BT68","v":574},0,574,null,null,null,null,null,null,null,null,null,null,null,null,null,null,null,null,136,40,80,null,80,null,null,163,50,100,null,100,null,null,145,48,96,null,96,null,null,163,60,120,null,120,null,null,83,32,64,null,64,null,null,151,57,114,null,114,null,null,null,null,null,null,null,null,null,null,null,null,null,null,null,null,null,null,null,null,null,null,null,null,null,null,null,null,null,null,null,null,null,null,null,null,null,null,null,null,null,null,null,null,null,null,null,null,null,null,null,null,null,null,null,null,null,null,574]
["УП.02","Педагогическая работа","инд",null,null,null,null,null,null,568,null,{"$f":"N69+P69","v":165},null,{"$f":"V69+AC69+AJ69+AQ69+AX69+BE69+BL69+BS69","v":55},null,110,0,110,null,null,null,null,null,null,null,null,null,null,null,null,null,null,null,null,null,null,null,null,null,null,null,null,null,null,null,null,null,null,48,16,32,null,32,null,null,64,20,40,null,40,null,null,null,null,null,null,null,null,null,57,19,38,null,38,null,null,null,null,null,null,null,null,null,null,null,null,null,null,null,null,null,null,null,null,null,null,null,null,null,null,null,null,null,null,null,null,null,null,null,null,null,null,null,null,null,null,null,null,null,null,null,null,null,null,null,null,null,null,null,null,null,null,110]
["ПП","Производственная (по профилю специальности) практика",null,null,null,null,null,null,null,null,null,null,null,"час",null,{"$f":"P71+P72","v":180},"нед",{"$f":"R71+R72","v":5},null,null,null,null,{"$f":"SUM(W71:W74)","v":20},null,{"$f":"SUM(Y71:Y72)","v":20},null,null,null,null,{"$f":"SUM(AD71:AD72)","v":25},null,{"$f":"SUM(AF71:AF72)","v":25},null,null,null,null,{"$f":"SUM(AK71:AK72)","v":20},null,{"$f":"SUM(AM71:AM72)","v":20},null,null,null,null,{"$f":"SUM(AR71:AR72)","v":25},null,{"$f":"SUM(AT71:AT72)","v":25},null,null,null,null,{"$f":"SUM(AY71:AY72)","v":20},null,{"$f":"SUM(BA71:BA72)","v":20},null,null,null,null,{"$f":"SUM(BF71:BF72)","v":25},null,{"$f":"SUM(BH71:BH72)","v":25},null,null,null,null,{"$f":"SUM(BM71:BM72)","v":20},null,{"$f":"SUM(BO71:BO72)","v":20},null,null,null,null,{"$f":"SUM(BT71:BT72)","v":25},null,{"$f":"SUM(BV71:BV72)","v":25},null,null,"час",null,null,"нед",null,null,null,"час",null,null,"нед",null,null,null,"час",null,null,"нед",null,null,null,"час",null,null,"нед",null,null,null,"час",null,null,"нед",null,null,null,"час",null,null,"нед",null,null,null,"час",null,null,"нед",null,null,null,"час",null,null,"нед"]
["ПП.01","Исполнительская (по профилю специальности)",null,null,null,null,null,null,null,null,null,null,null,"час",null,{"$f":"W71+AD71+AK71+AR71+AY71+BF71+BM71+BT71","v":144},"нед",4,null,null,null,null,16,null,16,null,null,null,null,20,null,20,null,null,null,null,16,null,16,null,null,null,null,20,null,20,null,null,null,null,16,null,16,null,null,null,null,20,null,20,null,null,null,null,16,null,16,null,null,null,null,20,null,20,null,null,"час",null,null,"нед",null,null,null,"час",null,null,"нед",null,null,null,"час",null,null,"нед",null,null,null,"час",null,null,"нед",null,null,null,"час",null,null,"нед",null,null,null,"час",null,null,"нед",null,null,null,"час",null,null,"нед",null,null,null,"час",null,null,"нед"]
["ПП.02","Педагогическая практика",null,null,null,null,null,null,null,null,null,null,null,"час",null,{"$f":"W72+AD72+AK72+AR72+AY72+BF72+BM72+BT72","v":36},"нед",1,null,null,null,null,4,null,4,null,null,null,null,5,null,5,null,null,null,null,4,null,4,null,null,null,null,5,null,5,null,null,null,null,4,null,4,null,null,null,null,5,null,5,null,null,null,null,4,null,4,null,null,null,null,5,null,5,null,null,"час",null,null,"нед",null,null,null,"час",null,null,"нед",null,null,null,"час",null,null,"нед",null,null,null,"час",null,null,"нед",null,null,null,"час",null,null,"нед",null,null,null,"час",null,null,"нед",null,null,null,"час",null,null,"нед",null,null,null,"час",null,null,"нед"]
["ПДП.00","Преддипломная практика",null,null,null,null,null,null,null,null,null,null,null,"час",null,{"$f":"W73+AD73+AK73+AR73+AY73+BF73+BM73+BT73","v":36},"нед",1,null,null,null,null,null,null,null,null,null,null,null,null,null,null,null,null,null,null,null,null,null,null,null,null,null,null,null,null,null,null,null,null,null,null,null,null,null,null,null,null,null,null,null,null,null,null,16,null,16,null,null,null,null,20,null,20,null,null,null,null,null,"нед",null,null,null,null,null,null,"нед",null,null,null,null,null,null,"нед",null,null,null,null,null,null,"нед",null,null,null,null,null,null,"нед",null,null,null,null,null,null,"нед",null,null,null,null,null,null,"нед",null,null,null,null,null,null,"нед"]
["ГИА.00","Государственная (итоговая) аттестация",null,null,null,null,null,null,null,null,null,null,null,null,null,null,"нед",4,null,null,null,null,null,null,null,null,null,null,null,null,null,null,null,null,null,null,null,null,null,null,null,null,null,null,null,null,null,null,null,null,null,null,null,null,null,null,null,null,null,null,null,null,null,null,null,null,null,null,null,null,null,null,"нед",4,null,null,null,null,null,"нед",null,null,null,null,null,null,"нед",null,null,null,null,null,null,"нед",null,null,null,null,null,null,"нед",null,null,null,null,null,null,"нед",null,null,null,null,null,null,"нед",null,null,null,null,null,null,"нед",null,null,null,null,null,null,"нед"]
["ГИА.01","Подготовка выпускной квалификационной работы",null,null,null,null,null,null,null,null,null,null,null,null,null,null,"нед",1,null,null,null,null,null,null,null,null,null,null,null,null,null,null,null,null,null,null,null,null,null,null,null,null,null,null,null,null,null,null,null,null,null,null,null,null,null,null,null,null,null,null,null,null,null,null,null,null,null,null,null,null,null,null,"нед",1]
["ГИА.02","Защита выпускной квалификационной работы",null,null,null,null,null,null,null,null,null,null,null,null,null,null,"нед",1,null,null,null,null,null,null,null,null,null,null,null,null,null,null,null,null,null,null,null,null,null,null,null,null,null,null,null,null,null,null,null,null,null,null,null,null,null,null,null,null,null,null,null,null,null,null,null,null,null,null,null,null,null,null,"нед",1,null,null,null,null,null,"нед",null,null,null,null,null,null,"нед",null,null,null,null,null,null,"нед",null,null,null,null,null,null,"нед",null,null,null,null,null,null,"нед",null,null,null,null,null,null,"нед",null,null,null,null,null,null,"нед",null,null,null,null,null,null,"нед"]
["ГИА.03","Государственный экзамен(по видам инструментов)",null,null,null,null,null,null,null,null,null,null,null,null,null,null,"нед",1,null,null,null,null,null,null,null,null,null,null,null,null,null,null,null,null,null,null,null,null,null,null,null,null,null,null,null,null,null,null,null,null,null,null,null,null,null,null,null,null,null,null,null,null,null,null,null,null,null,null,null,null,null,null,"нед",1,null,null,null,null,null,"нед",null,null,null,null,null,null,"нед",null,null,null,null,null,null,"нед",null,null,null,null,null,null,"нед",null,null,null,null,null,null,"нед",null,null,null,null,null,null,"нед",null,null,null,null,null,null,"нед",null,null,null,null,null,null,"нед"]
["ГИА.04","Государственный экзамен",null,null,null,null,null,null,null,null,null,null,null,null,null,null,"нед",1,null,null,null,null,null,null,null,null,null,null,null,null,null,null,null,null,null,null,null,null,null,null,null,null,null,null,null,null,null,null,null,null,null,null,null,null,null,null,null,null,null,null,null,null,null,null,null,null,null,null,null,null,null,null,"нед",1,null,null,null,null,null,"нед",null,null,null,null,null,null,"нед",null,null,null,null,null,null,"нед",null,null,null,null,null,null,"нед",null,null,null,null,null,null,"нед",null,null,null,null,null,null,"нед",null,null,null,null,null,null,"нед",null,null,null,null,null,null,"нед"]
[null,"ВСЕГО ПО ДИСЦИПЛИНАМ И МДК",null,27,8,26,null,null,null,85,null,7722,{"$f":"SUM(M10,M28,M35,M44,M56,#REF!,M67)","v":{"$error":"#REF!"}},2574,{"$f":"SUM(O10,O28,O35,O44,O56,#REF!,O67)","v":{"$error":"#REF!"}},5148,2669,2479,null,null,null,null,null,null,null,null,null,null,null,null,null,null,null,null,null,null,null,null,null,null,null,null,null,null,null,null,null,null,null,null,null,null,null,null,null,null,null,null,null,null,null,null,null,null,null,null,null,null,null,null,null,null,null,null,null,null,null,null,null,null,null,null,null,null,null,null,null,null,null,null,null,null,null,null,null,null,null,null,null,null,null,null,null,null,null,null,null,null,null,null,null,null,null,null,null,null,null,null,null,null,null,null,null,null,null,null,null,null,null,null,null,null,4572,576]
[null,"Экзаменов",null,null,null,null,null,null,null,null,null,null,null,null,null,null,null,null,null,null,1,null,null,{"$f":"SUM(IF(IFERROR(MID(D12:D21,SEARCH(1,D12:D21),1),0)=\"1\",1,0),IF(IFERROR(MID(D21:D26,SEARCH(1,D21:D26),1),0)=\"1\",1,0),IF(IFERROR(MID(D29:D33,SEARCH(1,D29:D33),1),0)=\"1\",1,0),IF(IFERROR(MID(D36:D42,SEARCH(1,D36:D42),1),0)=\"1\",1,0),IF(IFERROR(MID(D45:D53,SEARCH(1,D45:D53),1),0)=\"1\",1,0),IF(IFERROR(MID(D57:D66,SEARCH(1,D57:D66),1),0)=\"1\",1,0),IF(IFERROR(MID(#REF!,SEARCH(1,#REF!),1),0)=\"1\",1,0),IF(IFERROR(MID(D68:D69,SEARCH(1,D68:D69),1),0)=\"1\",1,0))","v":1},null,null,null,4,null,null,{"$f":"SUM(IF(IFERROR(MID(D12:D21,SEARCH(2,D12:D21),1),0)=\"2\",1,0),IF(IFERROR(MID(D21:D26,SEARCH(2,D21:D26),1),0)=\"2\",1,0),IF(IFERROR(MID(D29:D33,SEARCH(2,D29:D33),1),0)=\"2\",1,0),IF(IFERROR(MID(D36:D42,SEARCH(2,D36:D42),1),0)=\"2\",1,0),IF(IFERROR(MID(D45:D53,SEARCH(2,D45:D53),1),0)=\"2\",1,0),IF(IFERROR(MID(D57:D66,SEARCH(2,D57:D66),1),0)=\"2\",1,0),IF(IFERROR(MID(#REF!,SEARCH(2,#REF!),1),0)=\"2\",1,0),IF(IFERROR(MID(D68:D69,SEARCH(2,D68:D69),1),0)=\"2\",1,0))","v":5},null,null,null,1,null,null,{"$f":"SUM(IF(IFERROR(MID(D12:D21,SEARCH(3,D12:D21),1),0)=\"3\",1,0),IF(IFERROR(MID(D21:D26,SEARCH(3,D21:D26),1),0)=\"3\",1,0),IF(IFERROR(MID(D29:D33,SEARCH(3,D29:D33),1),0)=\"3\",1,0),IF(IFERROR(MID(D36:D42,SEARCH(3,D36:D42),1),0)=\"3\",1,0),IF(IFERROR(MID(D45:D53,SEARCH(3,D45:D53),1),0)=\"3\",1,0),IF(IFERROR(MID(D57:D66,SEARCH(3,D57:D66),1),0)=\"3\",1,0),IF(IFERROR(MID(#REF!,SEARCH(3,#REF!),1),0)=\"3\",1,0),IF(IFERROR(MID(D68:D69,SEARCH(3,D68:D69),1),0)=\"3\",1,0))","v":3},null,null,null,5,null,null,{"$f":"SUM(IF(IFERROR(MID(D12:D21,SEARCH(4,D12:D21),1),0)=\"4\",1,0),IF(IFERROR(MID(D21:D26,SEARCH(4,D21:D26),1),0)=\"4\",1,0),IF(IFERROR(MID(D29:D33,SEARCH(4,D29:D33),1),0)=\"4\",1,0),IF(IFERROR(MID(D36:D42,SEARCH(4,D36:D42),1),0)=\"4\",1,0),IF(IFERROR(MID(D45:D53,SEARCH(4,D45:D53),1),0)=\"4\",1,0),IF(IFERROR(MID(D57:D66,SEARCH(4,D57:D66),1),0)=\"4\",1,0),IF(IFERROR(MID(#REF!,SEARCH(4,#REF!),1),0)=\"4\",1,0),IF(IFERROR(MID(D68:D69,SEARCH(4,D68:D69),1),0)=\"4\",1,0))","v":5},null,null,null,1,null,null,{"$f":"SUM(IF(IFERROR(MID(D12:D21,SEARCH(5,D12:D21),1),0)=\"5\",1,0),IF(IFERROR(MID(D21:D26,SEARCH(5,D21:D26),1),0)=\"5\",1,0),IF(IFERROR(MID(D29:D33,SEARCH(5,D29:D33),1),0)=\"5\",1,0),IF(IFERROR(MID(D36:D42,SEARCH(5,D36:D42),1),0)=\"5\",1,0),IF(IFERROR(MID(D45:D53,SEARCH(5,D45:D53),1),0)=\"5\",1,0),IF(IFERROR(MID(D57:D66,SEARCH(5,D57:D66),1),0)=\"5\",1,0),IF(IFERROR(MID(#REF!,SEARCH(5,#REF!),1),0)=\"5\",1,0),IF(IFERROR(MID(D68:D69,SEARCH(5,D68:D69),1),0)=\"5\",1,0))","v":3},null,null,null,3,null,null,{"$f":"SUM(IF(IFERROR(MID(D12:D21,SEARCH(6,D12:D21),1),0)=\"6\",1,0),IF(IFERROR(MID(D21:D26,SEARCH(6,D21:D26),1),0)=\"6\",1,0),IF(IFERROR(MID(D29:D33,SEARCH(6,D29:D33),1),0)=\"6\",1,0),IF(IFERROR(MID(D36:D42,SEARCH(6,D36:D42),1),0)=\"6\",1,0),IF(IFERROR(MID(D45:D53,SEARCH(6,D45:D53),1),0)=\"6\",1,0),IF(IFERROR(MID(D57:D66,SEARCH(6,D57:D66),1),0)=\"6\",1,0),IF(IFERROR(MID(#REF!,SEARCH(6,#REF!),1),0)=\"6\",1,0),IF(IFERROR(MID(D68:D69,SEARCH(6,D68:D69),1),0)=\"6\",1,0))","v":6},null,null,null,2,null,null,{"$f":"SUM(IF(IFERROR(MID(D12:D21,SEARCH(7,D12:D21),1),0)=\"7\",1,0),IF(IFERROR(MID(D21:D26,SEARCH(7,D21:D26),1),0)=\"7\",1,0),IF(IFERROR(MID(D29:D33,SEARCH(7,D29:D33),1),0)=\"7\",1,0),IF(IFERROR(MID(D36:D42,SEARCH(7,D36:D42),1),0)=\"7\",1,0),IF(IFERROR(MID(D45:D53,SEARCH(7,D45:D53),1),0)=\"7\",1,0),IF(IFERROR(MID(D57:D66,SEARCH(7,D57:D66),1),0)=\"7\",1,0),IF(IFERROR(MID(#REF!,SEARCH(7,#REF!),1),0)=\"7\",1,0),IF(IFERROR(MID(D68:D69,SEARCH(7,D68:D69),1),0)=\"7\",1,0))","v":3},null,null,null,6,null,null,2]
[null,"Зачётов",null,null,null,null,null,null,null,null,null,null,null,null,null,null,null,null,null,null,1,null,null,1,null,null,null,4,null,null,1,null,null,null,1,null,null,1,null,null,null,5,null,null,1,null,null,null,1,null,null,{"$f":"SUM(IF(IFERROR(MID(E12:E21,SEARCH(5,E12:E21),1),0)=\"5\",1,0),IF(IFERROR(MID(E21:E26,SEARCH(5,E21:E26),1),0)=\"5\",1,0),IF(IFERROR(MID(E29:E33,SEARCH(5,E29:E33),1),0)=\"5\",1,0),IF(IFERROR(MID(E36:E42,SEARCH(5,E36:E42),1),0)=\"5\",1,0),IF(IFERROR(MID(E45:E53,SEARCH(5,E45:E53),1),0)=\"5\",1,0),IF(IFERROR(MID(E57:E66,SEARCH(5,E57:E66),1),0)=\"5\",1,0),IF(IFERROR(MID(#REF!,SEARCH(5,#REF!),1),0)=\"5\",1,0),IF(IFERROR(MID(E68:E69,SEARCH(5,E68:E69),1),0)=\"5\",1,0))","v":1},null,null,null,3,null,null,{"$f":"SUM(IF(IFERROR(MID(E12:E21,SEARCH(6,E12:E21),1),0)=\"6\",1,0),IF(IFERROR(MID(E21:E26,SEARCH(6,E21:E26),1),0)=\"6\",1,0),IF(IFERROR(MID(E29:E33,SEARCH(6,E29:E33),1),0)=\"6\",1,0),IF(IFERROR(MID(E36:E42,SEARCH(6,E36:E42),1),0)=\"6\",1,0),IF(IFERROR(MID(E45:E53,SEARCH(6,E45:E53),1),0)=\"6\",1,0),IF(IFERROR(MID(E57:E66,SEARCH(6,E57:E66),1),0)=\"6\",1,0),IF(IFERROR(MID(#REF!,SEARCH(6,#REF!),1),0)=\"6\",1,0),IF(IFERROR(MID(E68:E69,SEARCH(6,E68:E69),1),0)=\"6\",1,0))","v":1},null,null,null,2,null,null,{"$f":"SUM(IF(IFERROR(MID(E12:E21,SEARCH(7,E12:E21),1),0)=\"7\",1,0),IF(IFERROR(MID(E21:E26,SEARCH(7,E21:E26),1),0)=\"7\",1,0),IF(IFERROR(MID(E29:E33,SEARCH(7,E29:E33),1),0)=\"7\",1,0),IF(IFERROR(MID(E36:E42,SEARCH(7,E36:E42),1),0)=\"7\",1,0),IF(IFERROR(MID(E45:E53,SEARCH(7,E45:E53),1),0)=\"7\",1,0),IF(IFERROR(MID(E57:E66,SEARCH(7,E57:E66),1),0)=\"7\",1,0),IF(IFERROR(MID(#REF!,SEARCH(7,#REF!),1),0)=\"7\",1,0),IF(IFERROR(MID(E68:E69,SEARCH(7,E68:E69),1),0)=\"7\",1,0))","v":1},null,null,null,6,null,null,{"$f":"SUM(IF(IFERROR(MID(E12:E21,SEARCH(8,E12:E21),1),0)=\"8\",1,0),IF(IFERROR(MID(E21:E26,SEARCH(8,E21:E26),1),0)=\"8\",1,0),IF(IFERROR(MID(E29:E33,SEARCH(8,E29:E33),1),0)=\"8\",1,0),IF(IFERROR(MID(E36:E42,SEARCH(8,E36:E42),1),0)=\"8\",1,0),IF(IFERROR(MID(E45:E53,SEARCH(8,E45:E53),1),0)=\"8\",1,0),IF(IFERROR(MID(E57:E66,SEARCH(8,E57:E66),1),0)=\"8\",1,0),IF(IFERROR(MID(#REF!,SEARCH(8,#REF!),1),0)=\"8\",1,0),IF(IFERROR(MID(E68:E69,SEARCH(8,E68:E69),1),0)=\"8\",1,0))","v":1}]
[null,"Дифференицрованных зачётов",null,null,null,null,null,null,null,null,null,null,null,null,null,null,null,null,null,null,3,null,null,{"$f":"SUM(IF(IFERROR(MID(F12:F21,SEARCH(1,F12:F21),1),0)=\"1\",1,0),IF(IFERROR(MID(F21:F26,SEARCH(1,F21:F26),1),0)=\"1\",1,0),IF(IFERROR(MID(F29:I33,SEARCH(1,F29:I33),1),0)=\"1\",1,0),IF(IFERROR(MID(F36:F42,SEARCH(1,F36:F42),1),0)=\"1\",1,0),IF(IFERROR(MID(F45:F53,SEARCH(1,F45:I53),1),0)=\"1\",1,0),IF(IFERROR(MID(F57:I66,SEARCH(1,F57:F66),1),0)=\"1\",1,0),IF(IFERROR(MID(#REF!,SEARCH(1,#REF!),1),0)=\"1\",1,0),IF(IFERROR(MID(F68:I69,SEARCH(1,F68:I69),1),0)=\"1\",1,0))","v":3},null,null,null,3,null,null,{"$f":"SUM(IF(IFERROR(MID(F12:F21,SEARCH(2,F12:F21),1),0)=\"2\",1,0),IF(IFERROR(MID(F21:F26,SEARCH(2,F21:F26),1),0)=\"2\",1,0),IF(IFERROR(MID(F29:H33,SEARCH(2,F29:I33),1),0)=\"2\",1,0),IF(IFERROR(MID(F36:F42,SEARCH(2,F36:F42),1),0)=\"2\",1,0),IF(IFERROR(MID(F45:I53,SEARCH(2,F45:F53),1),0)=\"2\",1,0),IF(IFERROR(MID(F57:F66,SEARCH(2,F57:F66),1),0)=\"2\",1,0),IF(IFERROR(MID(#REF!,SEARCH(2,#REF!),1),0)=\"2\",1,0),IF(IFERROR(MID(F68:F69,SEARCH(2,F68:I69),1),0)=\"2\",1,0))","v":3},null,null,null,1,null,null,{"$f":"SUM(IF(IFERROR(MID(F12:F21,SEARCH(3,F12:F21),1),0)=\"3\",1,0),IF(IFERROR(MID(F21:F26,SEARCH(3,F21:F26),1),0)=\"3\",1,0),IF(IFERROR(MID(F29:H33,SEARCH(3,F29:F33),1),0)=\"3\",1,0),IF(IFERROR(MID(F36:F42,SEARCH(3,F36:F42),1),0)=\"3\",1,0),IF(IFERROR(MID(F45:I53,SEARCH(3,F45:F53),1),0)=\"3\",1,0),IF(IFERROR(MID(F57:F66,SEARCH(3,F57:F66),1),0)=\"3\",1,0),IF(IFERROR(MID(#REF!,SEARCH(3,#REF!),1),0)=\"3\",1,0),IF(IFERROR(MID(F68:F69,SEARCH(3,F68:I69),1),0)=\"3\",1,0))","v":2},null,null,null,5,null,null,{"$f":"SUM(IF(IFERROR(MID(F12:F21,SEARCH(4,F12:F21),1),0)=\"4\",1,0),IF(IFERROR(MID(F21:F26,SEARCH(4,F21:F26),1),0)=\"4\",1,0),IF(IFERROR(MID(F29:F33,SEARCH(4,F29:F33),1),0)=\"4\",1,0),IF(IFERROR(MID(F36:I42,SEARCH(4,F36:F42),1),0)=\"4\",1,0),IF(IFERROR(MID(F45:I53,SEARCH(4,F45:I53),1),0)=\"4\",1,0),IF(IFERROR(MID(F57:F66,SEARCH(4,F57:F66),1),0)=\"4\",1,0),IF(IFERROR(MID(#REF!,SEARCH(4,#REF!),1),0)=\"4\",1,0),IF(IFERROR(MID(F68:F69,SEARCH(4,F68:F69),1),0)=\"4\",1,0))","v":4},null,null,null,1,null,null,{"$f":"SUM(IF(IFERROR(MID(F12:F21,SEARCH(5,F12:F21),1),0)=\"5\",1,0),IF(IFERROR(MID(F21:F26,SEARCH(5,F21:F26),1),0)=\"5\",1,0),IF(IFERROR(MID(F29:F33,SEARCH(5,F29:F33),1),0)=\"5\",1,0),IF(IFERROR(MID(F36:F42,SEARCH(5,F36:F42),1),0)=\"5\",1,0),IF(IFERROR(MID(F45:F53,SEARCH(5,F45:F53),1),0)=\"5\",1,0),IF(IFERROR(MID(F57:F66,SEARCH(5,F57:F66),1),0)=\"5\",1,0),IF(IFERROR(MID(#REF!,SEARCH(5,#REF!),1),0)=\"5\",1,0),IF(IFERROR(MID(F68:F69,SEARCH(5,F68:I69),1),0)=\"5\",1,0))","v":3},null,null,null,3,null,null,{"$f":"SUM(IF(IFERROR(MID(F12:F21,SEARCH(6,F12:F21),1),0)=\"6\",1,0),IF(IFERROR(MID(F21:F26,SEARCH(6,F21:F26),1),0)=\"6\",1,0),IF(IFERROR(MID(F29:F33,SEARCH(6,F29:F33),1),0)=\"6\",1,0),IF(IFERROR(MID(F36:F42,SEARCH(6,F36:F42),1),0)=\"6\",1,0),IF(IFERROR(MID(F45:I53,SEARCH(6,F45:F53),1),0)=\"6\",1,0),IF(IFERROR(MID(F57:F66,SEARCH(6,F57:F66),1),0)=\"6\",1,0),IF(IFERROR(MID(#REF!,SEARCH(6,#REF!),1),0)=\"6\",1,0),IF(IFERROR(MID(F68:I69,SEARCH(6,F68:I69),1),0)=\"6\",1,0))","v":3},null,null,null,2,null,null,{"$f":"SUM(IF(IFERROR(MID(F12:F21,SEARCH(7,F12:F21),1),0)=\"7\",1,0),IF(IFERROR(MID(F21:F26,SEARCH(7,F21:F26),1),0)=\"7\",1,0),IF(IFERROR(MID(F29:F33,SEARCH(7,F29:F33),1),0)=\"7\",1,0),IF(IFERROR(MID(F36:F42,SEARCH(7,F36:F42),1),0)=\"7\",1,0),IF(IFERROR(MID(F45:F53,SEARCH(7,F45:I53),1),0)=\"7\",1,0),IF(IFERROR(MID(F57:F66,SEARCH(7,F57:I66),1),0)=\"7\",1,0),IF(IFERROR(MID(#REF!,SEARCH(7,#REF!),1),0)=\"7\",1,0),IF(IFERROR(MID(F68:I69,SEARCH(7,F68:I69),1),0)=\"7\",1,0))","v":4},null,null,null,6,null,null,{"$f":"SUM(IF(IFERROR(MID(F12:F21,SEARCH(8,F12:F21),1),0)=\"8\",1,0),IF(IFERROR(MID(F21:F26,SEARCH(8,F21:F26),1),0)=\"8\",1,0),IF(IFERROR(MID(F29:F33,SEARCH(8,F29:F33),1),0)=\"8\",1,0),IF(IFERROR(MID(F36:F42,SEARCH(8,F36:F42),1),0)=\"8\",1,0),IF(IFERROR(MID(F45:F53,SEARCH(8,F45:I53),1),0)=\"8\",1,0),IF(IFERROR(MID(F57:F66,SEARCH(8,F57:F66),1),0)=\"8\",1,0),IF(IFERROR(MID(#REF!,SEARCH(8,#REF!),1),0)=\"8\",1,0),IF(IFERROR(MID(F68:I69,SEARCH(8,F68:F69),1),0)=\"8\",1,0))","v":4}]
[null,"Контрольных работ (итоговые письм. классные)"]
[null,"Контрольных работ (домашние)"]

{"sheet":"Кабинеты","index":3,"n_rows":16,"n_cols":3,"rows_kept":16,"cut":false,"hidden":false,"merged":[]}
[null,"№","Наименование"]
[null,"1","Кабинеты:  русского языка и литературы;  "]
[null,"2","математики и информатики;"]
[null,"3","иностранного языка;"]
[null,"4","истории, географии и обществознания;"]
[null,"5","гуманитарных и социально-экономических дисциплин;"]
[null,"6","мировой художественной культуры;"]
[null,"7","музыкально-теоретических дисциплин;"]
[null,"8","музыкальной литературы."]
[null,"9","Учебные классы:  для групповых и индивидуальных занятий;"]
[null,"10","для занятий хоровым классом со специализированным оборудованием;"]
[null,"11","для проведения оркестровых и ансамблевых занятий. "]
[null,"12","Залы:  концертный зал от 100 посадочных мест с концертными роялями, пультами и звукотехническим оборудованием;   малый концертный зал от 30 посадочных мест с концертным роялем"]
[null,"13","библиотека, читальный зал с выходом в Интернет."]
[null,14,"  помещения для работы со специализированными материалами (фонотека, видеотека)"]
[null,15,"Спортивный комплекс: спортивныйзал; место для стрельбы.  "]

{"sheet":"Start","index":4,"n_rows":0,"n_cols":0,"rows_kept":0,"cut":false,"hidden":true,"merged":[]}